account_party,address,code,date,document_number,expense_code_name,expense_code_name_short,id,party_cell,party_cell_code,party_cell_geoobject,purpose,source_bank_account_number,source_bank_account_type,sum,target_legal_personality,target_legal_personality_code,target_type
"ПАРТІЯ ІГОРЯ КОЛИХАЄВА ""НАМ ТУТ ЖИТИ!""","73021, Херсонська обл.",52,2020-12-10,256,Інша реклама (без класифікації),Реклама (без класифікації),415970,Центральний офіс,39550770,Україна,змiна зображення зг. рах. №114 вiд 20/11/20 р.  без ПДВ,UA663348510000000026007113682,current,22050.00,Мельниченко Олександр Миколайович,,фізична особа
"ПАРТІЯ ІГОРЯ КОЛИХАЄВА ""НАМ ТУТ ЖИТИ!""","Україна, 73000, Херсонська обл.",52,2020-11-24,243,Інша реклама (без класифікації),Реклама (без класифікації),415969,Центральний офіс,39550770,Україна,Інформацiйнi послуги зг. рах. № 61 вiд 20/11/20 р.  без ПДВ,UA663348510000000026007113682,current,5000.00,Григор'єва Лідія Миколаївна,,фізична особа
"ПАРТІЯ ІГОРЯ КОЛИХАЄВА ""НАМ ТУТ ЖИТИ!""","73021, Херсонська обл",52,2020-11-18,235,Інша реклама (без класифікації),Реклама (без класифікації),415968,Центральний офіс,39550770,Україна,Розмiщення реклами зг. рах. №97 вiд 03/11/20 р.  без ПДВ,UA663348510000000026007113682,current,63000.00,Мельниченко Олександр Миколайович,,фізична особа
"ПАРТІЯ ІГОРЯ КОЛИХАЄВА ""НАМ ТУТ ЖИТИ!""","73021, Херсонська обл",52,2020-11-18,236,Інша реклама (без класифікації),Реклама (без класифікації),415967,Центральний офіс,39550770,Україна,змiна зображення зг. рах. №96 вiд 03/11/20 р.  без ПДВ,UA663348510000000026007113682,current,10762.50,Мельниченко Олександр Миколайович,,фізична особа
"ПАРТІЯ ІГОРЯ КОЛИХАЄВА ""НАМ ТУТ ЖИТИ!""","Україна, 73003, Херсонська обл.",45,2020-11-13,226,Перерахування коштів на виборчі рахунки кандидата від партії,Перерахування коштів до виборчих фондів,415966,Центральний офіс,39550770,Україна,"власнi кошти органiзацiї полiтичної партiї для фiнансування виборчої кампанiї, без ПДВ,",UA663348510000000026007113682,current,85000.00,Колихаєв Ігор Вікторович,,фізична особа
"ПАРТІЯ ІГОРЯ КОЛИХАЄВА ""НАМ ТУТ ЖИТИ!""","Україна, 73003, Херсонська обл.",45,2020-11-13,227,Перерахування коштів на виборчі рахунки кандидата від партії,Перерахування коштів до виборчих фондів,415965,Центральний офіс,39550770,Україна,"власнi кошти органiзацiї полiтичної партiї для фiнансування виборчої кампанiї, без ПДВ,",UA663348510000000026007113682,current,59387.26,Колихаєв Ігор Вікторович,,фізична особа
"ПАРТІЯ ІГОРЯ КОЛИХАЄВА ""НАМ ТУТ ЖИТИ!""","Україна, 73003, Херсонська обл.",45,2020-11-12,224,Перерахування коштів на виборчі рахунки кандидата від партії,Перерахування коштів до виборчих фондів,415964,Центральний офіс,39550770,Україна,"власнi кошти органiзацiї полiтичної партiї для фiнансування виборчої кампанiї, без ПДВ,",UA663348510000000026007113682,current,230000.00,Колихаєв Ігор Вікторович,,фізична особа
"ПАРТІЯ ІГОРЯ КОЛИХАЄВА ""НАМ ТУТ ЖИТИ!""","Україна, 73003, Херсонська обл",45,2020-11-12,225,Перерахування коштів на виборчі рахунки кандидата від партії,Перерахування коштів до виборчих фондів,415963,Центральний офіс,39550770,Україна,"власнi кошти органiзацiї полiтичної партiї для фiнансування виборчої кампанiї, без ПДВ,",UA663348510000000026007113682,current,50000.00,Колихаєв Ігор Вікторович,,фізична особа
"ПАРТІЯ ІГОРЯ КОЛИХАЄВА ""НАМ ТУТ ЖИТИ!""","Україна, 73003, Херсонська обл.",45,2020-11-11,223,Перерахування коштів на виборчі рахунки кандидата від партії,Перерахування коштів до виборчих фондів,415962,Центральний офіс,39550770,Україна,"власнi кошти органiзацiї полiтичної партiї для фiнансування виборчої кампанiї, без ПДВ,",UA663348510000000026007113682,current,130000.00,Колихаєв Ігор Вікторович,,фізична особа
"ПАРТІЯ ІГОРЯ КОЛИХАЄВА ""НАМ ТУТ ЖИТИ!""","Україна, 73003, Херсонська об",45,2020-11-10,222,Перерахування коштів на виборчі рахунки кандидата від партії,Перерахування коштів до виборчих фондів,415961,Центральний офіс,39550770,Україна,"власнi кошти органiзацiї полiтичної партiї для фiнансування виборчої кампанiї, без ПДВ,",UA663348510000000026007113682,current,70000.00,Колихаєв Ігор Вікторович,,фізична особа
"ПАРТІЯ ІГОРЯ КОЛИХАЄВА ""НАМ ТУТ ЖИТИ!""","Україна, 73003, Херсонська обл",45,2020-11-10,221,Перерахування коштів на виборчі рахунки кандидата від партії,Перерахування коштів до виборчих фондів,415960,Центральний офіс,39550770,Україна,"власнi кошти органiзацiї полiтичної партiї для фiнансування виборчої кампанiї, без ПДВ,",UA663348510000000026007113682,current,150000.00,Колихаєв Ігор Вікторович,,фізична особа
"ПАРТІЯ ІГОРЯ КОЛИХАЄВА ""НАМ ТУТ ЖИТИ!""","Україна, 73000, Херсонська обл.",52,2020-11-04,216,Інша реклама (без класифікації),Реклама (без класифікації),415959,Центральний офіс,39550770,Україна,Розмiщення реклами зг. рах. № 179 вiд 10/09/20 р.  без ПДВ,UA663348510000000026007113682,current,189130.80,Попов Олег Михайлович ,,фізична особа
"ПАРТІЯ ІГОРЯ КОЛИХАЄВА ""НАМ ТУТ ЖИТИ!""","Україна, 73000, Херсонська обл.",52,2020-11-04,215,Інша реклама (без класифікації),Реклама (без класифікації),415958,Центральний офіс,39550770,Україна,Виготовлення зображеня зг. рах. №210 вiд 23/09/20 р.№211 вiд 23/09/20 р.№214 вiд 28/09/20 р.    без ПДВ,UA663348510000000026007113682,current,10085.28,Попов Олег Михайлович ,,фізична особа
"ПАРТІЯ ІГОРЯ КОЛИХАЄВА ""НАМ ТУТ ЖИТИ!""","04210, м.Київ",52,2020-11-04,219,Інша реклама (без класифікації),Реклама (без класифікації),415957,Центральний офіс,39550770,Україна,Розмiщення рекл. зображення зг. рах. № 087 вiд 25/09/20 р.  без ПДВ,UA663348510000000026007113682,current,1484.00,Будніков Володимир Миколайович,,фізична особа
"ПАРТІЯ ІГОРЯ КОЛИХАЄВА ""НАМ ТУТ ЖИТИ!""","Україна, 73000, Херсонська обл.",52,2020-10-22,210,Інша реклама (без класифікації),Реклама (без класифікації),415956,Центральний офіс,39550770,Україна,Виготовлення зображеня зг. рах. № 164 вiд 03/09/20 р.  без ПДВ,UA663348510000000026007113682,current,693.56,Попов Олег Михайлович ,,фізична особа
"ПАРТІЯ ІГОРЯ КОЛИХАЄВА ""НАМ ТУТ ЖИТИ!""","Україна, 73000, Херсонська обл.",52,2020-10-22,211,Інша реклама (без класифікації),Реклама (без класифікації),415955,Центральний офіс,39550770,Україна,Виготовлення зображеня зг. рах. № 215 вiд 28/09/20 р. без ПДВ,UA663348510000000026007113682,current,1050.00,Попов Олег Михайлович ,,фізична особа
"ПАРТІЯ ІГОРЯ КОЛИХАЄВА ""НАМ ТУТ ЖИТИ!""","04210, м.Київ",52,2020-10-05,183,Інша реклама (без класифікації),Реклама (без класифікації),415954,Центральний офіс,39550770,Україна,Розмiщення рекл. зображення зг. рах. № 075 вiд 24/09/20 р.  без ПДВ,UA663348510000000026007113682,current,6837.00,Будніков Володимир Миколайович,,фізична особа
"ПАРТІЯ ІГОРЯ КОЛИХАЄВА ""НАМ ТУТ ЖИТИ!""","Україна, 73000, Херсонська обл.",58,2020-10-01,176,"Виготовлення друкованих матеріалів (плакатів, листівок, буклетів та інших агітаційних матеріалів)",Друкована агітація,415953,Центральний офіс,39550770,Україна,Верстка та пiдготовка до друку газети зг. рах. № 10 вiд 14/09/20 р.  без ПДВ,UA663348510000000026007113682,current,36750.00,Косюк Володимир Васильович,,фізична особа
"ПАРТІЯ ІГОРЯ КОЛИХАЄВА ""НАМ ТУТ ЖИТИ!""","Україна, 88000, Закарпатська обл.",43,2020-10-01,178,Інші витрати,Інші витрати,415952,Центральний офіс,39550770,Україна,послуги по супровожденю сайту зг. рах. № 19 вiд 25/09/20 р.  без ПДВ,UA663348510000000026007113682,current,2175.00,Ларіонов Олександр Лазорович ФОП,,фізична особа
"ПАРТІЯ ІГОРЯ КОЛИХАЄВА ""НАМ ТУТ ЖИТИ!""","м. Київ, вул. АНДРІЇВСЬКА, буд. 4",70,2020-09-29,,Банківські послуги,Інші витрати,260198,Центральний офіс,39550770,Україна,Договірне списання комісії за платіж на користь клієнта іншого банку зг. тарифів ПУМБ за дог. 286651447 від 24/03/2020 .,UA663348510000000026007113682,current,406.54,"ПАТ ""ПУМБ""",14282829,юридична особа
"ПАРТІЯ ІГОРЯ КОЛИХАЄВА ""НАМ ТУТ ЖИТИ!""","Херсонська обл., м. Херсон",52,2020-09-25,167,Інша реклама (без класифікації),Реклама (без класифікації),260365,Центральний офіс,39550770,Україна,"Виготовлення зображеня зг. рах. № 193 вiд 16/09/20 р.№208 вiд 23/09/20р., №131 вiд 18/08/20р, №209 вiд 23/09/20 р.№178 вiд 10/09/20 р. без ПДВ",UA663348510000000026007113682,current,41079.25,Попов Олег Михайлович,,фізична особа
"ПАРТІЯ ІГОРЯ КОЛИХАЄВА ""НАМ ТУТ ЖИТИ!""","Херсонська обл., м. Херсон",52,2020-09-25,169,Інша реклама (без класифікації),Реклама (без класифікації),260364,Центральний офіс,39550770,Україна,"Виготовлення зображеня зг. рах. № 141 вiд 25/08/20 р.№169 вiд 07/09/20 р.№176,177,187,188 вiд 10/09/20 р. №202,203,204,205 вiд 21/09/20 р., без ПДВ",UA663348510000000026007113682,current,56138.63,Попов Олег Михайлович,,фізична особа
"ПАРТІЯ ІГОРЯ КОЛИХАЄВА ""НАМ ТУТ ЖИТИ!""","Херсонська обл., м. Херсон",52,2020-09-25,168,Інша реклама (без класифікації),Реклама (без класифікації),260363,Центральний офіс,39550770,Україна,Розмiщення реклами зг. рах. № 180 вiд 10/09/20 без ПДВ,UA663348510000000026007113682,current,333044.64,Попов Олег Михайлович,,фізична особа
"ПАРТІЯ ІГОРЯ КОЛИХАЄВА ""НАМ ТУТ ЖИТИ!""","Херсонська обл., м. Херсон, вул. 40 РОКІВ ЖОВТНЯ, буд. 110, кв. 15",51,2020-09-25,174,Оплата ефірного часу на ТБ,Телереклама,260262,Центральний офіс,39550770,Україна,Трансляцiя iнформ. ролика зг. рах .№161-в вiд 04/09/20 р. без ПДВ,UA663348510000000026007113682,current,28000.00,"ТОВ ""ХЕРСОН ПЛЮС ПРОДАКШН""",41460314,юридична особа
"ПАРТІЯ ІГОРЯ КОЛИХАЄВА ""НАМ ТУТ ЖИТИ!""","Херсонська обл., Нововоронцовський р-н, смт Нововоронцовка, вул. ГОРЬКОГО, буд. 3",49,2020-09-25,172,Публікування матеріалів у друкованих ЗМІ,Реклама в друкованих ЗМІ,260255,Центральний офіс,39550770,Україна,"Інформ послуги газети ""Вiстi"" зг. рах .№ 318 вiд 23/09/20 р. без ПДВ",UA663348510000000026007113682,current,2400.00,"ТОВ ""СПОРТИВНИЙ КЛУБ ""ЮВА-СПОРТ""",39287585,юридична особа
"ПАРТІЯ ІГОРЯ КОЛИХАЄВА ""НАМ ТУТ ЖИТИ!""","Херсонська обл., Каланчацький р-н, смт Каланчак, вул. ХЕРСОНСЬКА, буд. 20А",49,2020-09-25,164,Публікування матеріалів у друкованих ЗМІ,Реклама в друкованих ЗМІ,260225,Центральний офіс,39550770,Україна,За розмiщення статті зг. рах. № 133 вiд 22/09/20 р. без ПДВ,UA663348510000000026007113682,current,1920.00,"ПП ""Інформ агенство ""Слава праці""",25900839,юридична особа
"ПАРТІЯ ІГОРЯ КОЛИХАЄВА ""НАМ ТУТ ЖИТИ!""","Херсонська обл., Нижньосірогозький р-н, смт Нижні Сірогози, вул. САДОВА, буд. 5",49,2020-09-25,170,Публікування матеріалів у друкованих ЗМІ,Реклама в друкованих ЗМІ,260223,Центральний офіс,39550770,Україна,Послуги щодо надання в ЗМІ зг. рах. № 73 вiд 21/09/20 р. без ПДВ,UA663348510000000026007113682,current,2700.00,"ТОВ РЕДАКЦІЯ РАЙОННОЇ ГАЗЕТИ ""ЧЕРВОНИЙ ПРОМІНЬ""",25645366,юридична особа
"ПАРТІЯ ІГОРЯ КОЛИХАЄВА ""НАМ ТУТ ЖИТИ!""","Херсонська обл., м. Херсон, вул. УНІВЕРСИТЕТСЬКА, буд. 31",49,2020-09-25,166,Публікування матеріалів у друкованих ЗМІ,Реклама в друкованих ЗМІ,260221,Центральний офіс,39550770,Україна,Реклама в газетi зг. рах. № 2180 вiд 21/09/20 р. без ПДВ,UA663348510000000026007113682,current,13608.00,"ПП ""Компроміс-медіа""",24951639,юридична особа
"ПАРТІЯ ІГОРЯ КОЛИХАЄВА ""НАМ ТУТ ЖИТИ!""","Херсонська обл., Іванівський р-н, смт Іванівка, вул. МИРУ, буд. 1",49,2020-09-25,161,Публікування матеріалів у друкованих ЗМІ,Реклама в друкованих ЗМІ,260220,Центральний офіс,39550770,Україна,"За розмiщення статті в газетi ""Нове життя"" зг. рах. № 57 вiд 21/09/20 р. без ПДВ",UA663348510000000026007113682,current,2400.00,"ПП ""Редакція Іванівської районної газети ""Нове життя""",02475598,юридична особа
"ПАРТІЯ ІГОРЯ КОЛИХАЄВА ""НАМ ТУТ ЖИТИ!""","Херсонська обл., Горностаївський р-н, смт Горностаївка, вул. УКРАЇНСЬКА, буд. 30",49,2020-09-25,163,Публікування матеріалів у друкованих ЗМІ,Реклама в друкованих ЗМІ,260218,Центральний офіс,39550770,Україна,Матерiали на замовлення зг. рах. № 122 вiд 24/09/20 р. без ПДВ,UA663348510000000026007113682,current,3600.00,"РГ ""Сільські новини""",02475581,юридична особа
"ПАРТІЯ ІГОРЯ КОЛИХАЄВА ""НАМ ТУТ ЖИТИ!""","Херсонська обл., м. Гола Пристань(пн), вул. 1 ТРАВНЯ, буд. 33",49,2020-09-25,171,Публікування матеріалів у друкованих ЗМІ,Реклама в друкованих ЗМІ,260216,Центральний офіс,39550770,Україна,Друк привiтання зг. рах. № 70 вiд 24/09/20 р. без ПДВ,UA663348510000000026007113682,current,2400.00,"КП РГ ""Голопристанський вісник""",02475575,юридична особа
"ПАРТІЯ ІГОРЯ КОЛИХАЄВА ""НАМ ТУТ ЖИТИ!""","Херсонська обл., Верхньорогачицький р-н, смт Верхній Рогачик, вул. ЮВІЛЕЙНА, буд. 61",49,2020-09-25,157,Публікування матеріалів у друкованих ЗМІ,Реклама в друкованих ЗМІ,260214,Центральний офіс,39550770,Україна,За розмiщення статті в газетi зг. рах. № 62 вiд 25/09/20 р. без ПДВ,UA663348510000000026007113682,current,4500.00,"ТОВ ""РГ ""Рідний край""",02475552,юридична особа
"ПАРТІЯ ІГОРЯ КОЛИХАЄВА ""НАМ ТУТ ЖИТИ!""","Херсонська обл., Великолепетиський р-н, смт Велика Лепетиха, вул. СОБОРНА, буд. 5",49,2020-09-25,158,Публікування матеріалів у друкованих ЗМІ,Реклама в друкованих ЗМІ,260211,Центральний офіс,39550770,Україна,За публiкацiю зг. рах. № 54 вiд 21/09/20 р. без ПДВ,UA663348510000000026007113682,current,3000.00,"РГ ""Таврійські вісті""",02475537,юридична особа
"ПАРТІЯ ІГОРЯ КОЛИХАЄВА ""НАМ ТУТ ЖИТИ!""","Херсонська обл., Бериславський р-н, м. Берислав, вул. ЦЕНТРАЛЬНА, буд. 224",49,2020-09-25,160,Публікування матеріалів у друкованих ЗМІ,Реклама в друкованих ЗМІ,260209,Центральний офіс,39550770,Україна,"За розмiщення статті в газеті ""Маяк"" зг. рах. № 238 вiд 22/09/20 р. без ПДВ",UA663348510000000026007113682,current,3744.00,"РРГ ""МАЯК""",02475517,юридична особа
"ПАРТІЯ ІГОРЯ КОЛИХАЄВА ""НАМ ТУТ ЖИТИ!""","Херсонська обл., Генічеський р-н, м. Генічеськ, вул. ВОКЗАЛЬНА, буд. 3",49,2020-09-25,162,Публікування матеріалів у друкованих ЗМІ,Реклама в друкованих ЗМІ,260207,Центральний офіс,39550770,Україна,За розмiщення вiтання в газетi зг. рах. № 160 вiд 21/09/20 р. без ПДВ,UA663348510000000026007113682,current,3000.00,"КП РРГ ""Приазовська правда""",02475486,юридична особа
"ПАРТІЯ ІГОРЯ КОЛИХАЄВА ""НАМ ТУТ ЖИТИ!""","Херсонська обл., Новотроїцький р-н, смт Новотроїцьке, вул. СОБОРНА, буд. 96",49,2020-09-25,165,Публікування матеріалів у друкованих ЗМІ,Реклама в друкованих ЗМІ,260205,Центральний офіс,39550770,Україна,За розмiщення статтi зг. рах. № 111 вiд 22/09/20 р. без ПДВ,UA663348510000000026007113682,current,2700.00,"ПП ""МЕДІА-ЦЕНТР ""ТРУДОВА СЛАВА""",02475457,юридична особа
"ПАРТІЯ ІГОРЯ КОЛИХАЄВА ""НАМ ТУТ ЖИТИ!""","Херсонська обл., Чаплинський р-н, смт Чаплинка, вул. ГРУШЕВСЬКОГО, буд. 16, А",49,2020-09-25,173,Публікування матеріалів у друкованих ЗМІ,Реклама в друкованих ЗМІ,260204,Центральний офіс,39550770,Україна,За публiкацiю зг. рах. № 171 вiд 23/09/20 р. без ПДВ,UA663348510000000026007113682,current,2188.00,"РГ ""Голос Таврії""",02475411,юридична особа
"ПАРТІЯ ІГОРЯ КОЛИХАЄВА ""НАМ ТУТ ЖИТИ!""","Херсонська обл., Олешківський р-н, м. Олешки, вул. ПАРОХОДНА, буд. 32/А",49,2020-09-25,159,Публікування матеріалів у друкованих ЗМІ,Реклама в друкованих ЗМІ,260202,Центральний офіс,39550770,Україна,За розмiщення статті зг. рах. № 82 вiд 21/09/20 р. без ПДВ,UA663348510000000026007113682,current,3011.00,Редакція газети ʼВісник Олешшяʼ,02475405,юридична особа
"ПАРТІЯ ІГОРЯ КОЛИХАЄВА ""НАМ ТУТ ЖИТИ!""","Херсонська обл., Скадовський р-н, смт Лазурне, вул. Жовтнева, буд. 53",59,2020-09-23,156,Грошова застава,Грошова застава,260299,Центральний офіс,39550770,Україна,Грошова застава мiсцевої органiзацiї полiтичної партiї без ПДВ,UA663348510000000026007113682,current,1000.00,ЛАЗУРНЕНСЬКА СЕЛИЩНА ТЕРИТОРІАЛЬНА ВИБОРЧА КОМІСІЯ СКАДОВСЬКОГО РАЙОНУ ХЕРСОНСЬКОЇ ОБЛАСТІ,43785263,юридична особа
"ПАРТІЯ ІГОРЯ КОЛИХАЄВА ""НАМ ТУТ ЖИТИ!""","Одеська обл., м. Одеса",57,2020-09-22,154,Виготовлення брендованої продукції,"Виготовлення брендованої продукції (футболки, кепки, парасольки)",260362,Центральний офіс,39550770,Україна,За сувенiрну продукцiю з символiкою партiї зг. рах. № 28 вiд 18/09/20 р. без ПДВ,UA663348510000000026007113682,current,114800.00,Орешин Андрій Юрійович,,фізична особа
"ПАРТІЯ ІГОРЯ КОЛИХАЄВА ""НАМ ТУТ ЖИТИ!""","Одеська обл., Овідіопольський р-н, село Лиманка",57,2020-09-22,155,Виготовлення брендованої продукції,"Виготовлення брендованої продукції (футболки, кепки, парасольки)",260361,Центральний офіс,39550770,Україна,За сувенiрну продукцiю з символiкою партiї зг. рах. № 20182/28 вiд 22/09/20 р. без ПДВ,UA663348510000000026007113682,current,59433.00,Світличний Олександр Леонідович,,фізична особа
"ПАРТІЯ ІГОРЯ КОЛИХАЄВА ""НАМ ТУТ ЖИТИ!""","Херсонська обл., м. Гола Пристань",52,2020-09-21,152,Інша реклама (без класифікації),Реклама (без класифікації),260360,Центральний офіс,39550770,Україна,Розмiщення реклами зг. рах. № 03.09.2020 вiд 03/09/20 р. без ПДВ,UA663348510000000026007113682,current,110000.00,Гаврилов Андрій Вікторович,,фізична особа
"ПАРТІЯ ІГОРЯ КОЛИХАЄВА ""НАМ ТУТ ЖИТИ!""","Херсонська обл., м. Херсон",58,2020-09-21,147,"Виготовлення друкованих матеріалів (плакатів, листівок, буклетів та інших агітаційних матеріалів)",Друкована агітація,260359,Центральний офіс,39550770,Україна,Верстка та пiдготовка до другу газети зг. рах. № 10 вiд 14/09/20 р. без ПДВ,UA663348510000000026007113682,current,12600.00,Косюк Володимир Васильович,,фізична особа
"ПАРТІЯ ІГОРЯ КОЛИХАЄВА ""НАМ ТУТ ЖИТИ!""","Херсонська обл., м. Херсон",54,2020-09-21,146,Виготовлення відеозаписів,Реклама (без класифікації),260358,Центральний офіс,39550770,Україна,Виготовлення вiдеороликiв для ТБ зг. рах. № 11 вiд 14/09/20 р. без ПДВ,UA663348510000000026007113682,current,16000.00,Косюк Володимир Васильович,,фізична особа
"ПАРТІЯ ІГОРЯ КОЛИХАЄВА ""НАМ ТУТ ЖИТИ!""","Херсонська обл., м. Нова Каховка",52,2020-09-21,153,Інша реклама (без класифікації),Реклама (без класифікації),260357,Центральний офіс,39550770,Україна,За рекламнi послуги зг. рах. № ЗП-19855 вiд 25/08/20 без ПДВ,UA663348510000000026007113682,current,72000.00,Хут Олеся Анатоліївна,,фізична особа
"ПАРТІЯ ІГОРЯ КОЛИХАЄВА ""НАМ ТУТ ЖИТИ!""","Херсонська обл., м. Каховка",53,2020-09-21,150,Витрати на розміщення зовнішньої реклами,Зовнішня реклама,260356,Центральний офіс,39550770,Україна,"Оренда бiлбордiв за монтажем №104 вiд 18/08/20, № 107 вiд 04/09/20, № 111 вiд 17/09/20 р. без ПДВ",UA663348510000000026007113682,current,20720.00,Муйзеник Микола Іванович,,фізична особа
"ПАРТІЯ ІГОРЯ КОЛИХАЄВА ""НАМ ТУТ ЖИТИ!""","Херсонська обл., м. Нова Каховка",52,2020-09-21,151,Інша реклама (без класифікації),Реклама (без класифікації),260355,Центральний офіс,39550770,Україна,Розмiщення рекламних матерiалiв зг. рах. № 161 вiд 14/09/20 р. без ПДВ,UA663348510000000026007113682,current,37650.00,Костенюк Іван Миколайович,,фізична особа
"ПАРТІЯ ІГОРЯ КОЛИХАЄВА ""НАМ ТУТ ЖИТИ!""","Херсонська обл., м. Херсон",52,2020-09-21,148,Інша реклама (без класифікації),Реклама (без класифікації),260354,Центральний офіс,39550770,Україна,Розмiщення рекл. зображення зг. рах. № 062 вiд 01/09/20 р. без ПДВ,UA663348510000000026007113682,current,18020.00,Будніков Володимир Миколайович,,фізична особа
"ПАРТІЯ ІГОРЯ КОЛИХАЄВА ""НАМ ТУТ ЖИТИ!""","Херсонська обл., Каховський р-н, смт Любимівка, вул. Центральна, буд. 36",59,2020-09-21,145,Грошова застава,Грошова застава,260321,Центральний офіс,39550770,Україна,Грошова застава мiсцевої органiзацiї полiтичної партiї без ПДВ,UA663348510000000026007113682,current,1000.00,Любимівська селищна територіальна виборча комісія Каховського районну Херсонської області,43801913,юридична особа
"ПАРТІЯ ІГОРЯ КОЛИХАЄВА ""НАМ ТУТ ЖИТИ!""","Херсонська обл., м. Херсон, вул. ЯРОСЛАВА МУДРОГО, буд. 12-14, оф. 17",52,2020-09-21,149,Інша реклама (без класифікації),Реклама (без класифікації),260267,Центральний офіс,39550770,Україна,"Розмiщення реклами зг. рах. № 592 вiд 01/09/20 р. ПДВ 9 100,00 грн",UA663348510000000026007113682,current,54600.00,"ТОВ ""СВІТ ІНФОРМ""",43273442,юридична особа
"ПАРТІЯ ІГОРЯ КОЛИХАЄВА ""НАМ ТУТ ЖИТИ!""","Херсонська обл., Бериславський р-н, село Милове, вул. Бериславська, буд. 26",59,2020-09-18,141,Грошова застава,Грошова застава,260304,Центральний офіс,39550770,Україна,Грошова застава мiсцевої органiзацiї полiтичної партiї без ПДВ,UA663348510000000026007113682,current,7000.00,Милівська сільська територіальна виборча комісія Бериславського району Херсонської області,43791172,юридична особа
"ПАРТІЯ ІГОРЯ КОЛИХАЄВА ""НАМ ТУТ ЖИТИ!""","Херсонська обл., Скадовський р-н, смт Лазурне, вул. Жовтнева, буд. 53",59,2020-09-18,140,Грошова застава,Грошова застава,260298,Центральний офіс,39550770,Україна,Грошова застава мiсцевої органiзацiї полiтичної партiї без ПДВ,UA663348510000000026007113682,current,3000.00,ЛАЗУРНЕНСЬКА СЕЛИЩНА ТЕРИТОРІАЛЬНА ВИБОРЧА КОМІСІЯ СКАДОВСЬКОГО РАЙОНУ ХЕРСОНСЬКОЇ ОБЛАСТІ,43785263,юридична особа
"ПАРТІЯ ІГОРЯ КОЛИХАЄВА ""НАМ ТУТ ЖИТИ!""","Херсонська обл., м. Херсон, вул. ДИМИТРОВА, буд. 19, кв. 67",79,2020-09-18,143,"Оренда будинків і приміщень та експлуатаційні витрати (прибирання, страхування орендованих будинків, охорона, сигналізація, ремонт, вивіз сміття, тощо)",Оренда нерухомості,260258,Центральний офіс,39550770,Україна,Оренда нежитлового примiщення зг. дог. № 02-07-2020 р вiд 02/07/20 без ПДВ,UA663348510000000026007113682,current,25000.00,"ТОВ ""НАДРА-ЮГ""",40808337,юридична особа
"ПАРТІЯ ІГОРЯ КОЛИХАЄВА ""НАМ ТУТ ЖИТИ!""","Херсонська обл., м. Херсон, вул. ПЕТРЕНКА, буд. 45",58,2020-09-18,144,"Виготовлення друкованих матеріалів (плакатів, листівок, буклетів та інших агітаційних матеріалів)",Друкована агітація,260253,Центральний офіс,39550770,Україна,"За брошура зг. рах. № 6435 вiд 14/08/20 р. ПДВ 1 172,68 грн",UA663348510000000026007113682,current,7036.08,"ПП ""Типографія ""Стар""",38936910,юридична особа
"ПАРТІЯ ІГОРЯ КОЛИХАЄВА ""НАМ ТУТ ЖИТИ!""","Херсонська обл., Генічеський р-н, м. Генічеськ, вул. ВОКЗАЛЬНА, буд. 3",49,2020-09-18,142,Публікування матеріалів у друкованих ЗМІ,Реклама в друкованих ЗМІ,260206,Центральний офіс,39550770,Україна,Вiтання в газетi зг. рах. № 148 вiд 20/08/20 р. без ПДВ,UA663348510000000026007113682,current,300.00,"КП РРГ ""Приазовська правда""",02475486,юридична особа
"ПАРТІЯ ІГОРЯ КОЛИХАЄВА ""НАМ ТУТ ЖИТИ!""","Херсонська обл., Горностаївський р-н, село Костянтинівка, вул. Миру, буд. 33, корпус а",59,2020-09-17,135,Грошова застава,Грошова застава,260322,Центральний офіс,39550770,Україна,Грошова застава мiсцевої органiзацiї полiтичної партiї без ПДВ,UA663348510000000026007113682,current,7000.00,Костянтинівська сільська територіальна виборча комісія Каховського району Херсонської області,43803947,юридична особа
"ПАРТІЯ ІГОРЯ КОЛИХАЄВА ""НАМ ТУТ ЖИТИ!""","Херсонська обл., Каховський р-н, смт Любимівка, вул. Центральна, буд. 36",59,2020-09-17,127,Грошова застава,Грошова застава,260320,Центральний офіс,39550770,Україна,Грошова застава мiсцевої органiзацiї полiтичної партiї без ПДВ,UA663348510000000026007113682,current,7000.00,Любимівська селищна територіальна виборча комісія Каховського районну Херсонської області,43801913,юридична особа
"ПАРТІЯ ІГОРЯ КОЛИХАЄВА ""НАМ ТУТ ЖИТИ!""","Херсонська обл., Горностаївський р-н, смт Горностаївка, вул. Покровська, буд. 133",59,2020-09-17,111,Грошова застава,Грошова застава,260319,Центральний офіс,39550770,Україна,Грошова застава мiсцевої органiзацiї полiтичної партiї без ПДВ,UA663348510000000026007113682,current,2351.00,Горностаївська селищна територіальна виборча комісія Каховського району Херсонської області,43799847,юридична особа
"ПАРТІЯ ІГОРЯ КОЛИХАЄВА ""НАМ ТУТ ЖИТИ!""","Херсонська обл., Високопільський р-н, село Кочубеївка, вул. Менонітська, буд. 78",59,2020-09-17,131,Грошова застава,Грошова застава,260318,Центральний офіс,39550770,Україна,Грошова застава мiсцевої органiзацiї полiтичної партiї без ПДВ,UA663348510000000026007113682,current,6000.00,Кочубеївська сільська територіальна виборча комісія Бериславського району Херсонської області,43799352,юридична особа
"ПАРТІЯ ІГОРЯ КОЛИХАЄВА ""НАМ ТУТ ЖИТИ!""","Херсонська обл., Бериславський р-н, село Тягинка, вул. Вишнева, буд. 1 д",59,2020-09-17,133,Грошова застава,Грошова застава,260317,Центральний офіс,39550770,Україна,Грошова застава мiсцевої органiзацiї полiтичної партiї без ПДВ,UA663348510000000026007113682,current,7000.00,Тягинська сільська територіальна виборча комісія,43797881,юридична особа
"ПАРТІЯ ІГОРЯ КОЛИХАЄВА ""НАМ ТУТ ЖИТИ!""","Херсонська обл., Нововоронцовський р-н, село Новоолександрівка, вул. Першого Травня, буд. 96",59,2020-09-17,132,Грошова застава,Грошова застава,260316,Центральний офіс,39550770,Україна,Грошова застава мiсцевої органiзацiї полiтичної партiї без ПДВ,UA663348510000000026007113682,current,6000.00,Новоолександрівська сільська територіальна виборча комісія Бериславського району Херсонської області,43797703,юридична особа
"ПАРТІЯ ІГОРЯ КОЛИХАЄВА ""НАМ ТУТ ЖИТИ!""","Херсонська обл., Нововоронцовський р-н, смт Нововоронцовка, вул. Суворова, буд. 4",59,2020-09-17,124,Грошова застава,Грошова застава,260315,Центральний офіс,39550770,Україна,Грошова застава мiсцевої органiзацiї полiтичної партiї без ПДВ,UA663348510000000026007113682,current,7000.00,Нововоронцовська селищна територіальна виборча комісія,43796778,юридична особа
"ПАРТІЯ ІГОРЯ КОЛИХАЄВА ""НАМ ТУТ ЖИТИ!""","Херсонська обл., Високопільський р-н, смт Високопілля, вул. Визволителів, буд. 112",59,2020-09-17,123,Грошова застава,Грошова застава,260314,Центральний офіс,39550770,Україна,"Грошова застава мiсцевої органiзацiї полiтичної партiї, яка висунула кандидата на посаду селищного голови без ПДВ",UA663348510000000026007113682,current,5000.00,Високопільська селищна територіальна виборча комісія Бериславського району Херсонської області,43794880,юридична особа
"ПАРТІЯ ІГОРЯ КОЛИХАЄВА ""НАМ ТУТ ЖИТИ!""","Херсонська обл., Високопільський р-н, смт Високопілля, вул. Визволителів, буд. 112",59,2020-09-17,122,Грошова застава,Грошова застава,260313,Центральний офіс,39550770,Україна,Грошова застава мiсцевої органiзацiї полiтичної партiї без ПДВ,UA663348510000000026007113682,current,19000.00,Високопільська селищна територіальна виборча комісія Бериславського району Херсонської області,43794880,юридична особа
"ПАРТІЯ ІГОРЯ КОЛИХАЄВА ""НАМ ТУТ ЖИТИ!""","Херсонська обл., Чаплинський р-н, смт Асканія-Нова, вул. Соборна, буд. 28",59,2020-09-17,125,Грошова застава,Грошова застава,260312,Центральний офіс,39550770,Україна,Грошова застава мiсцевої органiзацiї полiтичної партiї без ПДВ,UA663348510000000026007113682,current,9000.00,АСКАНІЯ-НОВА СЕЛИЩНА ТЕРИТОРІАЛЬНА ВИБОРЧА КОМІСІЯ КАХОВСЬКОГО РАЙОНУ ХЕРСОНСЬКОЇ ОБЛАСТІ,43793887,юридична особа
"ПАРТІЯ ІГОРЯ КОЛИХАЄВА ""НАМ ТУТ ЖИТИ!""","Херсонська обл., Чаплинський р-н, смт Асканія-Нова, вул. Соборна, буд. 28",59,2020-09-17,126,Грошова застава,Грошова застава,260311,Центральний офіс,39550770,Україна,"Грошова застава мiсцевої органiзацiї полiтичної партiї, яка висунула кандидата на посаду селищного голови без ПДВ",UA663348510000000026007113682,current,5000.00,АСКАНІЯ-НОВА СЕЛИЩНА ТЕРИТОРІАЛЬНА ВИБОРЧА КОМІСІЯ КАХОВСЬКОГО РАЙОНУ ХЕРСОНСЬКОЇ ОБЛАСТІ,43793887,юридична особа
"ПАРТІЯ ІГОРЯ КОЛИХАЄВА ""НАМ ТУТ ЖИТИ!""","Херсонська обл., Великоолександрівський р-н, смт Велика Олександрівка, вул. Свободи, буд. 155",59,2020-09-17,103,Грошова застава,Грошова застава,260310,Центральний офіс,39550770,Україна,"Грошова застава мiсцевої органiзацiї полiтичної партiї, яка висунула кандидата на посаду селищного голови без ПДВ",UA663348510000000026007113682,current,5000.00,Великоолександрівська селищна територіальна виборча комісія Бериславського району Херсонської області,43793689,юридична особа
"ПАРТІЯ ІГОРЯ КОЛИХАЄВА ""НАМ ТУТ ЖИТИ!""","Херсонська обл., Великоолександрівський р-н, смт Велика Олександрівка, вул. Свободи, буд. 155",59,2020-09-17,102,Грошова застава,Грошова застава,260309,Центральний офіс,39550770,Україна,Грошова застава мiсцевої органiзацiї полiтичної партiї без ПДВ,UA663348510000000026007113682,current,2952.00,Великоолександрівська селищна територіальна виборча комісія Бериславського району Херсонської області,43793688,юридична особа
"ПАРТІЯ ІГОРЯ КОЛИХАЄВА ""НАМ ТУТ ЖИТИ!""","Херсонська обл., Великолепетиський р-н, смт Велика Лепетиха, вул. Соборна, буд. 6",59,2020-09-17,110,Грошова застава,Грошова застава,260308,Центральний офіс,39550770,Україна,"Грошова застава мiсцевої органiзацiї полiтичної партiї, яка висунула кандидата на посаду селищного голови без ПДВ",UA663348510000000026007113682,current,5000.00,Великолепетиська селищна територіальна виборча комісія Каховського району Херсонської області,43793473,юридична особа
"ПАРТІЯ ІГОРЯ КОЛИХАЄВА ""НАМ ТУТ ЖИТИ!""","Херсонська обл., Великолепетиський р-н, смт Велика Лепетиха, вул. Соборна, буд. 6",59,2020-09-17,109,Грошова застава,Грошова застава,260307,Центральний офіс,39550770,Україна,Грошова застава мiсцевої органiзацiї полiтичної партiї без ПДВ,UA663348510000000026007113682,current,2268.00,Великолепетиська селищна територіальна виборча комісія Каховського району Херсонської області,43793473,юридична особа
"ПАРТІЯ ІГОРЯ КОЛИХАЄВА ""НАМ ТУТ ЖИТИ!""","Херсонська обл., Новотроїцький р-н, смт Новотроїцьке, вул. Пушкіна, буд. 4",59,2020-09-17,108,Грошова застава,Грошова застава,260306,Центральний офіс,39550770,Україна,"Грошова застава мiсцевої органiзацiї полiтичної партiї, яка висунула кандидата на посаду селищного голови без ПДВ",UA663348510000000026007113682,current,5000.00,Новотроїцька селищна територіальна виборча комісія,43792878,юридична особа
"ПАРТІЯ ІГОРЯ КОЛИХАЄВА ""НАМ ТУТ ЖИТИ!""","Херсонська обл., Новотроїцький р-н, смт Новотроїцьке, вул. Пушкіна, буд. 4",59,2020-09-17,107,Грошова застава,Грошова застава,260305,Центральний офіс,39550770,Україна,Грошова застава мiсцевої органiзацiї полiтичної партiї без ПДВ,UA663348510000000026007113682,current,6138.00,Новотроїцька селищна територіальна виборча комісія,43792878,юридична особа
"ПАРТІЯ ІГОРЯ КОЛИХАЄВА ""НАМ ТУТ ЖИТИ!""","Херсонська обл., Каховський р-н, село Тавричанка, вул. 40 років Перемоги, буд. 18 з",59,2020-09-17,130,Грошова застава,Грошова застава,260303,Центральний офіс,39550770,Україна,Грошова застава мiсцевої органiзацiї полiтичної партiї без ПДВ,UA663348510000000026007113682,current,9000.00,Тавричанська сільська територіальна виборча комісія Каховського районну Херсонської області,43790315,юридична особа
"ПАРТІЯ ІГОРЯ КОЛИХАЄВА ""НАМ ТУТ ЖИТИ!""","Херсонська обл., м. Херсон, вул. Суворова, буд. 29",59,2020-09-17,120,Грошова застава,Грошова застава,260302,Центральний офіс,39550770,Україна,Грошова застава мiсцевої органiзацiї полiтичної партiї без ПДВ,UA663348510000000026007113682,current,19828.00,Корабельна районна у м. Херсон територіальна виборча комісія,43786031,юридична особа
"ПАРТІЯ ІГОРЯ КОЛИХАЄВА ""НАМ ТУТ ЖИТИ!""","Херсонська обл., Скадовський р-н, село Новомиколаївка, пр. Миру, буд. 24",59,2020-09-17,136,Грошова застава,Грошова застава,260301,Центральний офіс,39550770,Україна,Грошова застава мiсцевої органiзацiї полiтичної партiї без ПДВ,UA663348510000000026007113682,current,16000.00,НОВОМИКОЛАЇВСЬКА СІЛЬСЬКА ТЕРИТОРІАЛЬНА ВИБОРЧА КОМІСІЯ СКАДОВСЬКОГО РАЙОНУ ХЕРСОНСЬКОЇ ОБЛАСТІ,43785567,юридична особа
"ПАРТІЯ ІГОРЯ КОЛИХАЄВА ""НАМ ТУТ ЖИТИ!""","Херсонська обл., Скадовський р-н, село Новомиколаївка, пр. Миру, буд. 24",59,2020-09-17,137,Грошова застава,Грошова застава,260300,Центральний офіс,39550770,Україна,"Грошова застава мiсцевої органiзацiї полiтичної партiї, яка висунула кандидата на посаду селищного голови без ПДВ",UA663348510000000026007113682,current,5000.00,НОВОМИКОЛАЇВСЬКА СІЛЬСЬКА ТЕРИТОРІАЛЬНА ВИБОРЧА КОМІСІЯ СКАДОВСЬКОГО РАЙОНУ ХЕРСОНСЬКОЇ ОБЛАСТІ,43785567,юридична особа
"ПАРТІЯ ІГОРЯ КОЛИХАЄВА ""НАМ ТУТ ЖИТИ!""","Херсонська обл., Скадовський р-н, смт Лазурне, вул. Жовтнева, буд. 53",59,2020-09-17,128,Грошова застава,Грошова застава,260297,Центральний офіс,39550770,Україна,Грошова застава мiсцевої органiзацiї полiтичної партiї без ПДВ,UA663348510000000026007113682,current,7000.00,ЛАЗУРНЕНСЬКА СЕЛИЩНА ТЕРИТОРІАЛЬНА ВИБОРЧА КОМІСІЯ СКАДОВСЬКОГО РАЙОНУ ХЕРСОНСЬКОЇ ОБЛАСТІ,43785263,юридична особа
"ПАРТІЯ ІГОРЯ КОЛИХАЄВА ""НАМ ТУТ ЖИТИ!""","Херсонська обл., Скадовський р-н, смт Лазурне, вул. Жовтнева, буд. 53",59,2020-09-17,129,Грошова застава,Грошова застава,260296,Центральний офіс,39550770,Україна,"Грошова застава мiсцевої органiзацiї полiтичної партiї, яка висунула кандидата на посаду селищного голови без ПДВ",UA663348510000000026007113682,current,5000.00,ЛАЗУРНЕНСЬКА СЕЛИЩНА ТЕРИТОРІАЛЬНА ВИБОРЧА КОМІСІЯ СКАДОВСЬКОГО РАЙОНУ ХЕРСОНСЬКОЇ ОБЛАСТІ,43785263,юридична особа
"ПАРТІЯ ІГОРЯ КОЛИХАЄВА ""НАМ ТУТ ЖИТИ!""","Херсонська обл., Каховський р-н, селище Зелений Під, вул. Миру, буд. 12",59,2020-09-17,134,Грошова застава,Грошова застава,260295,Центральний офіс,39550770,Україна,Грошова застава мiсцевої органiзацiї полiтичної партiї без ПДВ,UA663348510000000026007113682,current,9000.00,Зеленопідська сільська територіальна виборча комісія Каховського району Херсонської області,43785195,юридична особа
"ПАРТІЯ ІГОРЯ КОЛИХАЄВА ""НАМ ТУТ ЖИТИ!""","Херсонська обл., Голопристанський р-н, село Бехтери, вул. Благодатна, буд. 51А",59,2020-09-17,138,Грошова застава,Грошова застава,260294,Центральний офіс,39550770,Україна,"Грошова застава мiсцевої органiзацiї полiтичної партiї, яка висунула кандидата на посаду сiльського голови без ПДВ",UA663348510000000026007113682,current,5000.00,Бехтерська сільська територіальна виборча комісія,43784927,юридична особа
"ПАРТІЯ ІГОРЯ КОЛИХАЄВА ""НАМ ТУТ ЖИТИ!""","Херсонська обл., Іванівський р-н, смт Іванівка, вул. Миру, буд. 2",59,2020-09-17,104,Грошова застава,Грошова застава,260293,Центральний офіс,39550770,Україна,Грошова застава мiсцевої органiзацiї полiтичної партiї без ПДВ,UA663348510000000026007113682,current,2377.00,Іванівська селищна територіальна виборча комісія,43784563,юридична особа
"ПАРТІЯ ІГОРЯ КОЛИХАЄВА ""НАМ ТУТ ЖИТИ!""","Херсонська обл., Іванівський р-н, смт Іванівка, вул. Миру, буд. 2",59,2020-09-17,105,Грошова застава,Грошова застава,260292,Центральний офіс,39550770,Україна,"Грошова застава мiсцевої органiзацiї полiтичної партiї, яка висунула кандидата на посаду селищного голови без ПДВ",UA663348510000000026007113682,current,5000.00,Іванівська селищна територіальна виборча комісія,43784563,юридична особа
"ПАРТІЯ ІГОРЯ КОЛИХАЄВА ""НАМ ТУТ ЖИТИ!""","Херсонська обл., Нижньосірогозький р-н, смт Нижні Сірогози, вул. Садова, буд. 10",59,2020-09-17,106,Грошова застава,Грошова застава,260291,Центральний офіс,39550770,Україна,Грошова застава мiсцевої органiзацiї полiтичної партiї без ПДВ,UA663348510000000026007113682,current,2617.00,Нижньосірогозька селищна територіальна,43783565,юридична особа
"ПАРТІЯ ІГОРЯ КОЛИХАЄВА ""НАМ ТУТ ЖИТИ!""","Херсонська обл., Каланчацький р-н, смт Каланчак, вул. Херсонська, буд. 1",59,2020-09-17,112,Грошова застава,Грошова застава,260290,Центральний офіс,39550770,Україна,Грошова застава мiсцевої органiзацiї полiтичної партiї без ПДВ,UA663348510000000026007113682,current,3265.00,Каланчацька селищна територіальна виборча комісія Скадовського району Херсонської області,43782739,юридична особа
"ПАРТІЯ ІГОРЯ КОЛИХАЄВА ""НАМ ТУТ ЖИТИ!""","Херсонська обл., м. Херсон, вул. Перекопська, буд. 166, кв. 112",59,2020-09-17,139,Грошова застава,Грошова застава,260289,Центральний офіс,39550770,Україна,Грошова застава мiсцевої органiзацiї полiтичної партiї без ПДВ,UA663348510000000026007113682,current,16865.00,Дніпровська районна у м. Херсон територіальна виборча комісія,43781280,юридична особа
"ПАРТІЯ ІГОРЯ КОЛИХАЄВА ""НАМ ТУТ ЖИТИ!""","Херсонська обл., м. Херсон, пр. Ушакова, буд. 47",59,2020-09-17,121,Грошова застава,Грошова застава,260288,Центральний офіс,39550770,Україна,Грошова застава мiсцевої органiзацiї полiтичної партiї без ПДВ,UA663348510000000026007113682,current,20150.00,Суворовська районна у м. Херсон територіальна виборча комісія,43777912,юридична особа
"ПАРТІЯ ІГОРЯ КОЛИХАЄВА ""НАМ ТУТ ЖИТИ!""","Херсонська обл., м. Гола Пристань(пн), вул. 1 Травня, буд. 14",59,2020-09-17,96,Грошова застава,Грошова застава,260287,Центральний офіс,39550770,Україна,Грошова застава мiсцевої органiзацiї полiтичної партiї без ПДВ,UA663348510000000026007113682,current,6194.00,Голопристанська міська територіальна виборча комісія,43773478,юридична особа
"ПАРТІЯ ІГОРЯ КОЛИХАЄВА ""НАМ ТУТ ЖИТИ!""","Херсонська обл., м. Херсон, пл. Свободи, буд. 1",59,2020-09-17,119,Грошова застава,Грошова застава,260286,Центральний офіс,39550770,Україна,Грошова застава мiсцевої органiзацiї полiтичної партiї без ПДВ,UA663348510000000026007113682,current,79661.00,Херсонська районна територіальна виборча комісія,43767553,юридична особа
"ПАРТІЯ ІГОРЯ КОЛИХАЄВА ""НАМ ТУТ ЖИТИ!""","Херсонська обл., Генічеський р-н, м. Генічеськ, вул. Вокзальна, буд. 15",59,2020-09-17,85,Грошова застава,Грошова застава,260285,Центральний офіс,39550770,Україна,Грошова застава мiсцевої органiзацiї полiтичної партiї без ПДВ,UA663348510000000026007113682,current,20791.00,Генічеська районна територіальна виборча комісія,43761237,юридична особа
"ПАРТІЯ ІГОРЯ КОЛИХАЄВА ""НАМ ТУТ ЖИТИ!""","Херсонська обл., м. Нова Каховка, вул. Історична, буд. 52",59,2020-09-17,93,Грошова застава,Грошова застава,260284,Центральний офіс,39550770,Україна,Грошова застава мiсцевої органiзацiї полiтичної партiї без ПДВ,UA663348510000000026007113682,current,11021.00,НОВОКАХОВСЬКА МІСЬКА ТЕРИТОРІАЛЬНА ВИБОРЧА КОМІСІЯ КАХОВСЬКОГО РАЙОНУ ХЕРСОНСЬКОЇ ОБЛАСТІ,43760757,юридична особа
"ПАРТІЯ ІГОРЯ КОЛИХАЄВА ""НАМ ТУТ ЖИТИ!""","Херсонська обл., м. Каховка, вул. Панкеєвська, буд. 6",59,2020-09-17,92,Грошова застава,Грошова застава,260283,Центральний офіс,39550770,Україна,"Грошова застава мiсцевої органiзацiї полiтичної партiї, яка висунула кандидата на посаду селищного голови без ПДВ",UA663348510000000026007113682,current,5000.00,Каховська міська територіальна виборча комісія,43760296,юридична особа
"ПАРТІЯ ІГОРЯ КОЛИХАЄВА ""НАМ ТУТ ЖИТИ!""","Херсонська обл., м. Каховка, вул. Панкеєвська, буд. 6",59,2020-09-17,91,Грошова застава,Грошова застава,260282,Центральний офіс,39550770,Україна,Грошова застава мiсцевої органiзацiї полiтичної партiї без ПДВ,UA663348510000000026007113682,current,7842.00,Каховська міська територіальна виборча комісія,43760296,юридична особа
"ПАРТІЯ ІГОРЯ КОЛИХАЄВА ""НАМ ТУТ ЖИТИ!""","Херсонська обл., Скадовський р-н, м. Скадовськ, вул. Олександрівська, буд. 34, кабінет 7",59,2020-09-17,87,Грошова застава,Грошова застава,260281,Центральний офіс,39550770,Україна,Грошова застава мiсцевої органiзацiї полiтичної партiї без ПДВ,UA663348510000000026007113682,current,22089.00,Скадовська районна територіальна виборча комісія,43760228,юридична особа
"ПАРТІЯ ІГОРЯ КОЛИХАЄВА ""НАМ ТУТ ЖИТИ!""","Херсонська обл., м. Нова Каховка, пр. Дніпровський, буд. 30",59,2020-09-17,86,Грошова застава,Грошова застава,260280,Центральний офіс,39550770,Україна,Грошова застава мiсцевої органiзацiї полiтичної партiї без ПДВ,UA663348510000000026007113682,current,39101.00,Каховська районна територіальна виборча комісія,43758093,юридична особа
"ПАРТІЯ ІГОРЯ КОЛИХАЄВА ""НАМ ТУТ ЖИТИ!""","Херсонська обл., Бериславський р-н, м. Берислав, вул. 1 Травня, буд. 244",59,2020-09-17,89,Грошова застава,Грошова застава,260279,Центральний офіс,39550770,Україна,"Грошова застава мiсцевої органiзацiї полiтичної партiї, яка висунула кандидата на посаду селищного голови без ПДВ",UA663348510000000026007113682,current,5000.00,Бериславська міська територіальна виборча комісія,43757262,юридична особа
"ПАРТІЯ ІГОРЯ КОЛИХАЄВА ""НАМ ТУТ ЖИТИ!""","Херсонська обл., Бериславський р-н, м. Берислав, вул. 1 Травня, буд. 244",59,2020-09-17,88,Грошова застава,Грошова застава,260278,Центральний офіс,39550770,Україна,Грошова застава мiсцевої органiзацiї полiтичної партiї без ПДВ,UA663348510000000026007113682,current,3394.00,Бериславська міська територіальна виборча комісія,43757262,юридична особа
"ПАРТІЯ ІГОРЯ КОЛИХАЄВА ""НАМ ТУТ ЖИТИ!""","Херсонська обл., Скадовський р-н, м. Скадовськ, вул. Гагаріна, буд. 63",59,2020-09-17,97,Грошова застава,Грошова застава,260277,Центральний офіс,39550770,Україна,Грошова застава мiсцевої органiзацiї полiтичної партiї без ПДВ,UA663348510000000026007113682,current,6121.00,СКАДОВСЬКА МІСЬКА ТЕРИТОРІАЛЬНА ВИБОРЧА КОМІСІЯ СКАДОВСЬКОГО РАЙОНУ ХЕРСОНСЬКОЇ ОБЛАСТІ,43756080,юридична особа
"ПАРТІЯ ІГОРЯ КОЛИХАЄВА ""НАМ ТУТ ЖИТИ!""","Херсонська обл., м. Нова Каховка, м. Таврійськ, вул. Портова, буд. 3",59,2020-09-17,95,Грошова застава,Грошова застава,260276,Центральний офіс,39550770,Україна,"Грошова застава мiсцевої органiзацiї полiтичної партiї, яка висунула кандидата на пост мiського голови без ПДВ",UA663348510000000026007113682,current,5000.00,ТАВРІЙСЬКА МІСЬКА ТЕРИТОРІАЛЬНА ВИБОРЧА КОМІСІЯ,43755841,юридична особа
"ПАРТІЯ ІГОРЯ КОЛИХАЄВА ""НАМ ТУТ ЖИТИ!""","Херсонська обл., м. Нова Каховка, м. Таврійськ, вул. Портова, буд. 3",59,2020-09-17,94,Грошова застава,Грошова застава,260275,Центральний офіс,39550770,Україна,Грошова застава мiсцевої органiзацiї полiтичної партiї без ПДВ,UA663348510000000026007113682,current,3167.00,ТАВРІЙСЬКА МІСЬКА ТЕРИТОРІАЛЬНА ВИБОРЧА КОМІСІЯ,43755841,юридична особа
"ПАРТІЯ ІГОРЯ КОЛИХАЄВА ""НАМ ТУТ ЖИТИ!""","Херсонська обл., Бериславський р-н, м. Берислав, вул. 1 Травня, буд. 205",59,2020-09-17,84,Грошова застава,Грошова застава,260274,Центральний офіс,39550770,Україна,Грошова застава мiсцевої органiзацiї полiтичної партiї без ПДВ,UA663348510000000026007113682,current,17029.00,Бериславська районна територіальна виборча комісія,43755726,юридична особа
"ПАРТІЯ ІГОРЯ КОЛИХАЄВА ""НАМ ТУТ ЖИТИ!""","Херсонська обл., Генічеський р-н, м. Генічеськ, вул. Міська, буд. 8",59,2020-09-17,90,Грошова застава,Грошова застава,260273,Центральний офіс,39550770,Україна,Грошова застава мiсцевої органiзацiї полiтичної партiї без ПДВ,UA663348510000000026007113682,current,9659.00,Генічеська міська територіальна виборча комісія Генічеського району,43755663,юридична особа
"ПАРТІЯ ІГОРЯ КОЛИХАЄВА ""НАМ ТУТ ЖИТИ!""","Херсонська обл., Олешківський р-н, м. Олешки(пн), вул. Гвардійська, буд. 29",59,2020-09-17,98,Грошова застава,Грошова застава,260272,Центральний офіс,39550770,Україна,Грошова застава мiсцевої органiзацiї полiтичної партiї без ПДВ,UA663348510000000026007113682,current,6533.00,Олешківська міська територіальна виборча комісія,43755134,юридична особа
"ПАРТІЯ ІГОРЯ КОЛИХАЄВА ""НАМ ТУТ ЖИТИ!""","Херсонська обл., Олешківський р-н, м. Олешки(пн), вул. Гвардійська, буд. 29",59,2020-09-17,99,Грошова застава,Грошова застава,260271,Центральний офіс,39550770,Україна,"Грошова застава мiсцевої органiзацiї полiтичної партiї, яка висунула кандидата на пост мiського голови без ПДВ",UA663348510000000026007113682,current,5000.00,Олешківська міська територіальна виборча комісія,43755134,юридична особа
"ПАРТІЯ ІГОРЯ КОЛИХАЄВА ""НАМ ТУТ ЖИТИ!""","Херсонська обл., м. Херсон, пл. Свободи, буд. 1",59,2020-09-17,118,Грошова застава,Грошова застава,260270,Центральний офіс,39550770,Україна,Грошова застава мiсцевої органiзацiї полiтичної партiї без ПДВ,UA663348510000000026007113682,current,178670.00,Херсонська обласна територіальна виборча комісія,43754994,юридична особа
"ПАРТІЯ ІГОРЯ КОЛИХАЄВА ""НАМ ТУТ ЖИТИ!""","Херсонська обл., м. Херсон, пр. Ушакова, буд. 37",59,2020-09-17,100,Грошова застава,Грошова застава,260269,Центральний офіс,39550770,Україна,Грошова застава мiсцевої органiзацiї полiтичної партiї без ПДВ,UA663348510000000026007113682,current,56843.00,Херсонська міська територіальна виборча комісія Херсонського району,43754738,юридична особа
"ПАРТІЯ ІГОРЯ КОЛИХАЄВА ""НАМ ТУТ ЖИТИ!""","Херсонська обл., м. Херсон, пр. Ушакова, буд. 37",59,2020-09-17,101,Грошова застава,Грошова застава,260268,Центральний офіс,39550770,Україна,"Грошова застава мiсцевої органiзацiї полiтичної партiї, яка висунула кандидата на посаду міського голови без ПДВ",UA663348510000000026007113682,current,56843.00,Херсонська міська територіальна виборча комісія Херсонського району,43754738,юридична особа
"ПАРТІЯ ІГОРЯ КОЛИХАЄВА ""НАМ ТУТ ЖИТИ!""","Херсонська обл., Білозерський р-н, село Чорнобаївка, вул. Соборна, буд. 44",59,2020-09-17,117,Грошова застава,Грошова застава,260236,Центральний офіс,39550770,Україна,Грошова застава мiсцевої органiзацiї полiтичної партiї без ПДВ,UA663348510000000026007113682,current,2600.00,Чорнобаївська сільська територіальна виборча комісія,34088271,юридична особа
"ПАРТІЯ ІГОРЯ КОЛИХАЄВА ""НАМ ТУТ ЖИТИ!""","Херсонська обл., Білозерський р-н, село Дарʼївка, вул. Соборна, буд. 126, кабінет 21",59,2020-09-17,115,Грошова застава,Грошова застава,260235,Центральний офіс,39550770,Україна,Грошова застава мiсцевої органiзацiї полiтичної партiї без ПДВ,UA663348510000000026007113682,current,2403.00,Дарʼївська сільська територіальна виборча комісія,34088203,юридична особа
"ПАРТІЯ ІГОРЯ КОЛИХАЄВА ""НАМ ТУТ ЖИТИ!""","Херсонська обл., Білозерський р-н, село Дарʼївка, вул. Соборна, буд. 126, кабінет 21",59,2020-09-17,116,Грошова застава,Грошова застава,260234,Центральний офіс,39550770,Україна,"Грошова застава мiсцевої органiзацiї полiтичної партiї, яка висунула кандидата на посаду сiльського голови без ПДВ",UA663348510000000026007113682,current,5000.00,Дарʼївська сільська територіальна виборча комісія,34088203,юридична особа
"ПАРТІЯ ІГОРЯ КОЛИХАЄВА ""НАМ ТУТ ЖИТИ!""","Херсонська обл., Білозерський р-н, смт Білозерка, вул. Свободи, буд. 83",59,2020-09-17,114,Грошова застава,Грошова застава,260233,Центральний офіс,39550770,Україна,"Грошова застава мiсцевої органiзацiї полiтичної партiї, яка висунула кандидата на посаду селищного голови без ПДВ",UA663348510000000026007113682,current,5000.00,Білозерська селищна територіальна виборча комісія,33825173,юридична особа
"ПАРТІЯ ІГОРЯ КОЛИХАЄВА ""НАМ ТУТ ЖИТИ!""","Херсонська обл., Білозерський р-н, смт Білозерка, вул. Свободи, буд. 83",59,2020-09-17,113,Грошова застава,Грошова застава,260232,Центральний офіс,39550770,Україна,Грошова застава мiсцевої органiзацiї полiтичної партiї без ПДВ,UA663348510000000026007113682,current,3782.00,Білозерська селищна територіальна виборча комісія,33825173,юридична особа
"ПАРТІЯ ІГОРЯ КОЛИХАЄВА ""НАМ ТУТ ЖИТИ!""","Херсонська обл., м. Херсон",54,2020-09-16,81,Виготовлення відеозаписів,Реклама (без класифікації),260353,Центральний офіс,39550770,Україна,Виготовлення вiдеороликiв для ТБ зг. рах. № 11 вiд 14/09/20 р. без ПДВ,UA663348510000000026007113682,current,16000.00,Косюк Володимир Васильович,,фізична особа
"ПАРТІЯ ІГОРЯ КОЛИХАЄВА ""НАМ ТУТ ЖИТИ!""","Херсонська обл., м. Херсон",54,2020-09-16,82,Виготовлення відеозаписів,Реклама (без класифікації),260352,Центральний офіс,39550770,Україна,Виготовлення вiдеороликiв для ТБ зг. рах. № 12 вiд 14/09/20 р. без ПДВ,UA663348510000000026007113682,current,16000.00,Косюк Володимир Васильович,,фізична особа
"ПАРТІЯ ІГОРЯ КОЛИХАЄВА ""НАМ ТУТ ЖИТИ!""","Херсонська обл., м. Херсон, КОШОВИЙ УЗВІЗ, буд. 5",49,2020-09-16,83,Публікування матеріалів у друкованих ЗМІ,Реклама в друкованих ЗМІ,260228,Центральний офіс,39550770,Україна,"За газету зг. рах. № 258830 вiд 14/09/20 р. ПДВ 2 916,65 грн",UA663348510000000026007113682,current,17499.90,ТОВ ʼПолімедʼ,30667919,юридична особа
"ПАРТІЯ ІГОРЯ КОЛИХАЄВА ""НАМ ТУТ ЖИТИ!""","Херсонська обл., м. Херсон, вул. 40 РОКІВ ЖОВТНЯ, буд. 110, кв. 15",51,2020-09-11,72,Оплата ефірного часу на ТБ,Телереклама,260261,Центральний офіс,39550770,Україна,"Трансляцiя iнформ. ролика зг. рах .№161-в вiд 04/09/20 р., без ПДВ",UA663348510000000026007113682,current,36000.00,"ТОВ ""ХЕРСОН ПЛЮС ПРОДАКШН""",41460314,юридична особа
"ПАРТІЯ ІГОРЯ КОЛИХАЄВА ""НАМ ТУТ ЖИТИ!""","Херсонська обл., м. Херсон",52,2020-09-10,69,Інша реклама (без класифікації),Реклама (без класифікації),260351,Центральний офіс,39550770,Україна,"Розмiщення реклами зг. рах. № 139,143 вiд 25/08/20 р. №160 вiд 31/08/20 без ПДВ",UA663348510000000026007113682,current,173872.65,Попов Олег Михайлович,,фізична особа
"ПАРТІЯ ІГОРЯ КОЛИХАЄВА ""НАМ ТУТ ЖИТИ!""","Херсонська обл., м. Херсон зареєстровано",52,2020-09-10,70,Інша реклама (без класифікації),Реклама (без класифікації),260350,Центральний офіс,39550770,Україна,Розмiщення рекл. зображення зг. рах. № 061 вiд 01/09/20 р. без ПДВ,UA663348510000000026007113682,current,15900.00,Будніков Володимир Миколайович,,фізична особа
"ПАРТІЯ ІГОРЯ КОЛИХАЄВА ""НАМ ТУТ ЖИТИ!""","Херсонська обл., м. Херсон, вул. ЯРОСЛАВА МУДРОГО, буд. 12-14, оф. 17",52,2020-09-10,71,Інша реклама (без класифікації),Реклама (без класифікації),260266,Центральний офіс,39550770,Україна,"Розмiщення реклами зг. рах. № 631 вiд 01/09/20 р. ПДВ 6 666,67 грн",UA663348510000000026007113682,current,40000.00,"ТОВ ""СВІТ ІНФОРМ""",43273442,юридична особа
"ПАРТІЯ ІГОРЯ КОЛИХАЄВА ""НАМ ТУТ ЖИТИ!""","Херсонська обл., м. Херсон",54,2020-09-07,68,Виготовлення відеозаписів,Реклама (без класифікації),260349,Центральний офіс,39550770,Україна,Виготовлення вiдеороликiв для ТБ зг. рах. № 9 вiд 21/08/20 р. без ПДВ,UA663348510000000026007113682,current,56000.00,Косюк Володимир Васильович,,фізична особа
"ПАРТІЯ ІГОРЯ КОЛИХАЄВА ""НАМ ТУТ ЖИТИ!""","Херсонська обл., м. Херсон",52,2020-09-02,67,Інша реклама (без класифікації),Реклама (без класифікації),260348,Центральний офіс,39550770,Україна,Виготовлення зображеня зг. рах. № 143 вiд 25/08/20 р. без ПДВ,UA663348510000000026007113682,current,30810.15,Попов Олег Михайлович,,фізична особа
"ПАРТІЯ ІГОРЯ КОЛИХАЄВА ""НАМ ТУТ ЖИТИ!""","Херсонська обл., м. Нова Каховка",52,2020-09-02,62,Інша реклама (без класифікації),Реклама (без класифікації),260347,Центральний офіс,39550770,Україна,За рекламнi послуги зг. рах. № ЗП-19984 вiд 21/08/20 без ПДВ,UA663348510000000026007113682,current,3493.00,Хут Олеся Анатоліївна,,фізична особа
"ПАРТІЯ ІГОРЯ КОЛИХАЄВА ""НАМ ТУТ ЖИТИ!""","Херсонська обл., м. Нова Каховка",52,2020-09-02,64,Інша реклама (без класифікації),Реклама (без класифікації),260346,Центральний офіс,39550770,Україна,Розмiщення рекламних матерiалiв зг. рах. № 139 вiд 26/08/20 р. без ПДВ,UA663348510000000026007113682,current,37350.00,Костенюк Іван Миколайович,,фізична особа
"ПАРТІЯ ІГОРЯ КОЛИХАЄВА ""НАМ ТУТ ЖИТИ!""","Херсонська обл., м. Херсон",52,2020-09-02,60,Інша реклама (без класифікації),Реклама (без класифікації),260345,Центральний офіс,39550770,Україна,"Розмiщення реклами зг. рах. № 145,142,144 вiд 25/08/20 р. №129 вiд 18/08/20№135 вiд20/08/20 р,№121 вiд 13/08/20 без ПДВ",UA663348510000000026007113682,current,29993.25,Попов Олег Михайлович,,фізична особа
"ПАРТІЯ ІГОРЯ КОЛИХАЄВА ""НАМ ТУТ ЖИТИ!""","Херсонська обл., м. Херсон",52,2020-09-02,59,Інша реклама (без класифікації),Реклама (без класифікації),260344,Центральний офіс,39550770,Україна,Розмiщення реклами зг. рах. № 118 вiд 10/08/20 р. без ПДВ,UA663348510000000026007113682,current,319200.00,Попов Олег Михайлович,,фізична особа
"ПАРТІЯ ІГОРЯ КОЛИХАЄВА ""НАМ ТУТ ЖИТИ!""","Херсонська обл., м. Херсон, вул. ЯРОСЛАВА МУДРОГО, буд. 12-14, оф. 17",52,2020-09-02,61,Інша реклама (без класифікації),Реклама (без класифікації),260265,Центральний офіс,39550770,Україна,"Розмiщення реклами зг. рах. № 572 вiд 01/08/20 р. та 664 вiд 12/08/20 р. ПДВ 4 960,00 грн",UA663348510000000026007113682,current,29760.00,"ТОВ ""СВІТ ІНФОРМ""",43273442,юридична особа
"ПАРТІЯ ІГОРЯ КОЛИХАЄВА ""НАМ ТУТ ЖИТИ!""","Херсонська обл., м. Херсон, вул. 40 РОКІВ ЖОВТНЯ, буд. 110, кв. 15",51,2020-09-02,63,Оплата ефірного часу на ТБ,Телереклама,260260,Центральний офіс,39550770,Україна,Трансляцiя iмiджевого промо ролика зг. рах .№ 145-в вiд 14/08/20 р. без ПДВ,UA663348510000000026007113682,current,25000.00,"ТОВ ""ХЕРСОН ПЛЮС ПРОДАКШН""",41460314,юридична особа
"ПАРТІЯ ІГОРЯ КОЛИХАЄВА ""НАМ ТУТ ЖИТИ!""","Херсонська обл., м. Херсон, вул. МОСКОВСЬКА, буд. 3А",52,2020-09-02,66,Інша реклама (без класифікації),Реклама (без класифікації),260231,Центральний офіс,39550770,Україна,Розмiщення реклами зг. рах. № 158 вiд 01/09/20 р. без ПДВ,UA663348510000000026007113682,current,61530.00,"ТОВ ""Херсон-енерго сервіс""",32125075,юридична особа
"ПАРТІЯ ІГОРЯ КОЛИХАЄВА ""НАМ ТУТ ЖИТИ!""","Херсонська обл., Скадовський р-н, м. Скадовськ, вул. ОЛЕКСАНДРІВСЬКА, буд. 32",52,2020-09-02,65,Інша реклама (без класифікації),Реклама (без класифікації),260200,Центральний офіс,39550770,Україна,Привiтання зг. рах. № 160 вiд 20/08/20 р. без ПДВ,UA663348510000000026007113682,current,660.00,"ПП ""Медіа-компанія ""Чорноморець""",02475397,юридична особа
"ПАРТІЯ ІГОРЯ КОЛИХАЄВА ""НАМ ТУТ ЖИТИ!""","Херсонська обл., м. Херсон",52,2020-08-28,54,Інша реклама (без класифікації),Реклама (без класифікації),260343,Центральний офіс,39550770,Україна,Виготовлення зображеня зг. рах. № 156 вiд 27/08/20 р. без ПДВ,UA663348510000000026007113682,current,1112.64,Попов Олег Михайлович,,фізична особа
"ПАРТІЯ ІГОРЯ КОЛИХАЄВА ""НАМ ТУТ ЖИТИ!""","Херсонська обл., м. Херсон",52,2020-08-28,57,Інша реклама (без класифікації),Реклама (без класифікації),260342,Центральний офіс,39550770,Україна,Виготовлення зображеня зг. рах. № 153 вiд 27/08/20 р. без ПДВ,UA663348510000000026007113682,current,15629.04,Попов Олег Михайлович,,фізична особа
"ПАРТІЯ ІГОРЯ КОЛИХАЄВА ""НАМ ТУТ ЖИТИ!""","Херсонська обл., м. Херсон",52,2020-08-28,55,Інша реклама (без класифікації),Реклама (без класифікації),260341,Центральний офіс,39550770,Україна,Виготовлення зображеня зг. рах. № 151 вiд 27/08/20 р. без ПДВ,UA663348510000000026007113682,current,693.56,Попов Олег Михайлович,,фізична особа
"ПАРТІЯ ІГОРЯ КОЛИХАЄВА ""НАМ ТУТ ЖИТИ!""","Херсонська обл., м. Херсон",52,2020-08-28,56,Інша реклама (без класифікації),Реклама (без класифікації),260340,Центральний офіс,39550770,Україна,Виготовлення зображеня зг. рах. № 149 вiд 27/08/20 р. без ПДВ,UA663348510000000026007113682,current,5077.80,Попов Олег Михайлович,,фізична особа
"ПАРТІЯ ІГОРЯ КОЛИХАЄВА ""НАМ ТУТ ЖИТИ!""","Херсонська обл., м. Херсон",52,2020-08-28,53,Інша реклама (без класифікації),Реклама (без класифікації),260339,Центральний офіс,39550770,Україна,Виготовлення стенду зг. рах. № 154 вiд 27/08/20 р. без ПДВ,UA663348510000000026007113682,current,9850.00,Попов Олег Михайлович,,фізична особа
"ПАРТІЯ ІГОРЯ КОЛИХАЄВА ""НАМ ТУТ ЖИТИ!""","Херсонська обл., Високопільський р-н, смт Високопілля, вул. ВИЗВОЛИТЕЛІВ, буд. 112",49,2020-08-28,58,Публікування матеріалів у друкованих ЗМІ,Реклама в друкованих ЗМІ,260212,Центральний офіс,39550770,Україна,"Публiкацiя в газетi ""Високе поле"" зг. рах. № 199 вiд 27/08/20 р. без ПДВ",UA663348510000000026007113682,current,911.04,"Високопільська районна газета ""Високе поле""",02475546,юридична особа
"ПАРТІЯ ІГОРЯ КОЛИХАЄВА ""НАМ ТУТ ЖИТИ!""","Херсонська обл., м. Херсон",52,2020-08-27,48,Інша реклама (без класифікації),Реклама (без класифікації),260338,Центральний офіс,39550770,Україна,Розмiщення рекл. зображення зг. рах. № 048 вiд 01/08/20 р. без ПДВ,UA663348510000000026007113682,current,15900.00,Будніков Володимир Миколайович,,фізична особа
"ПАРТІЯ ІГОРЯ КОЛИХАЄВА ""НАМ ТУТ ЖИТИ!""","Херсонська обл., м. Херсон, вул. ЯРОСЛАВА МУДРОГО, буд. 12-14, оф. 17",52,2020-08-27,49,Інша реклама (без класифікації),Реклама (без класифікації),260264,Центральний офіс,39550770,Україна,"Розмiщення реклами зг. рах. № 628 вiд 01/08/20 р. ПДВ 4 800,00 грн, без ПДВ",UA663348510000000026007113682,current,28800.00,"ТОВ ""СВІТ ІНФОРМ""",43273442,юридична особа
"ПАРТІЯ ІГОРЯ КОЛИХАЄВА ""НАМ ТУТ ЖИТИ!""","Херсонська обл., м. Херсон, вул. ЯРОСЛАВА МУДРОГО, буд. 12-14, оф. 16",53,2020-08-27,50,Витрати на розміщення зовнішньої реклами,Зовнішня реклама,260263,Центральний офіс,39550770,Україна,"Постер та монтаж зг. рах. № 677, 681 вiд 19/08/20, №662,663 вiд 12/08/20 р.№641 вiд 04/08/20 р., №629 вiд 03/08/20 р. ПДВ 1 556,67 грн, без ПДВ",UA663348510000000026007113682,current,9340.00,"ТОВ ""СВІТ ІНФОРМ""",43273442,юридична особа
"ПАРТІЯ ІГОРЯ КОЛИХАЄВА ""НАМ ТУТ ЖИТИ!""","Херсонська обл., м. Херсон, вул. МОСКОВСЬКА, буд. 3А",52,2020-08-27,51,Інша реклама (без класифікації),Реклама (без класифікації),260230,Центральний офіс,39550770,Україна,Розмiщення реклами зг. рах. № 128 вiд 03/08/20 р. без ПДВ,UA663348510000000026007113682,current,36015.00,"ТОВ ""Херсон-енерго сервіс""",32125075,юридична особа
"ПАРТІЯ ІГОРЯ КОЛИХАЄВА ""НАМ ТУТ ЖИТИ!""","Херсонська обл., м. Херсон, вул. МОСКОВСЬКА, буд. 3А",52,2020-08-27,52,Інша реклама (без класифікації),Реклама (без класифікації),260229,Центральний офіс,39550770,Україна,Розмiщення реклами зг. рах. № 152 вiд 18/08/20 р. без ПДВ,UA663348510000000026007113682,current,6300.00,"ТОВ ""Херсон-енерго сервіс""",32125075,юридична особа
"ПАРТІЯ ІГОРЯ КОЛИХАЄВА ""НАМ ТУТ ЖИТИ!""","Херсонська обл., м. Херсон",54,2020-08-25,39,Виготовлення відеозаписів,Реклама (без класифікації),260337,Центральний офіс,39550770,Україна,Виготовлення вiдеороликiв для ТБ зг. рах. № 9 вiд 21/08/20 р. без ПДВ,UA663348510000000026007113682,current,56000.00,Косюк Володимир Васильович,,фізична особа
"ПАРТІЯ ІГОРЯ КОЛИХАЄВА ""НАМ ТУТ ЖИТИ!""","Херсонська обл., Нововоронцовський р-н, смт Нововоронцовка, вул. ГОРЬКОГО, буд. 3",49,2020-08-25,44,Публікування матеріалів у друкованих ЗМІ,Реклама в друкованих ЗМІ,260254,Центральний офіс,39550770,Україна,"Інформ послуги газети ""Вiстi"" зг. рах .№ 287 вiд 19/08/20 р. без ПДВ",UA663348510000000026007113682,current,600.00,"ТОВ ""СПОРТИВНИЙ КЛУБ ""ЮВА-СПОРТ""",39287585,юридична особа
"ПАРТІЯ ІГОРЯ КОЛИХАЄВА ""НАМ ТУТ ЖИТИ!""","Херсонська обл., Каланчацький р-н, смт Каланчак, вул. ХЕРСОНСЬКА, буд. 20А",49,2020-08-25,45,Публікування матеріалів у друкованих ЗМІ,Реклама в друкованих ЗМІ,260224,Центральний офіс,39550770,Україна,За публiкацiю зг. рах. № 111 вiд 18/08/20 р. без ПДВ,UA663348510000000026007113682,current,390.00,"ПП ""Інформ агенство ""Слава праці""",25900839,юридична особа
"ПАРТІЯ ІГОРЯ КОЛИХАЄВА ""НАМ ТУТ ЖИТИ!""","Херсонська обл., Нижньосірогозький р-н, смт Нижні Сірогози, вул. САДОВА, буд. 5",49,2020-08-25,40,Публікування матеріалів у друкованих ЗМІ,Реклама в друкованих ЗМІ,260222,Центральний офіс,39550770,Україна,Послуги щодо надання в ЗМІ зг. рах. № 65 вiд 18/08/20 р. без ПДВ,UA663348510000000026007113682,current,1050.00,"ТОВ РЕДАКЦІЯ РАЙОННОЇ ГАЗЕТИ ""ЧЕРВОНИЙ ПРОМІНЬ""",25645366,юридична особа
"ПАРТІЯ ІГОРЯ КОЛИХАЄВА ""НАМ ТУТ ЖИТИ!""","Херсонська обл., Іванівський р-н, смт Іванівка, вул. МИРУ, буд. 1",49,2020-08-25,43,Публікування матеріалів у друкованих ЗМІ,Реклама в друкованих ЗМІ,260219,Центральний офіс,39550770,Україна,"За розмiщення в газетi ""Нове життя"" зг. рах. № 46 вiд 19/08/20 р. без ПДВ",UA663348510000000026007113682,current,300.00,"ПП ""Редакція Іванівської районної газети ""Нове життя""",02475598,юридична особа
"ПАРТІЯ ІГОРЯ КОЛИХАЄВА ""НАМ ТУТ ЖИТИ!""","Херсонська обл., Горностаївський р-н, смт Горностаївка, вул. УКРАЇНСЬКА, буд. 30",49,2020-08-25,47,Публікування матеріалів у друкованих ЗМІ,Реклама в друкованих ЗМІ,260217,Центральний офіс,39550770,Україна,Матерiали на замовлення зг. рах. № 101 вiд 21/08/20 р. без ПДВ,UA663348510000000026007113682,current,1260.00,"РГ ""Сільські новини""",02475581,юридична особа
"ПАРТІЯ ІГОРЯ КОЛИХАЄВА ""НАМ ТУТ ЖИТИ!""","Херсонська обл., м. Гола Пристань(пн), вул. 1 ТРАВНЯ, буд. 33",49,2020-08-25,42,Публікування матеріалів у друкованих ЗМІ,Реклама в друкованих ЗМІ,260215,Центральний офіс,39550770,Україна,Друк привiтання зг. рах. № 55 вiд 19/08/20 р. без ПДВ,UA663348510000000026007113682,current,491.40,"КП РГ ""Голопристанський вісник""",02475575,юридична особа
"ПАРТІЯ ІГОРЯ КОЛИХАЄВА ""НАМ ТУТ ЖИТИ!""","Херсонська обл., Великолепетиський р-н, смт Велика Лепетиха, вул. СОБОРНА, буд. 5",49,2020-08-25,41,Публікування матеріалів у друкованих ЗМІ,Реклама в друкованих ЗМІ,260210,Центральний офіс,39550770,Україна,За публiкацiю зг. рах. № 44 вiд 05/08/20 р. без ПДВ,UA663348510000000026007113682,current,1885.00,"РГ ""Таврійські вісті""",02475537,юридична особа
"ПАРТІЯ ІГОРЯ КОЛИХАЄВА ""НАМ ТУТ ЖИТИ!""","Херсонська обл., Бериславський р-н, м. Берислав, вул. ЦЕНТРАЛЬНА, буд. 224",49,2020-08-25,46,Публікування матеріалів у друкованих ЗМІ,Реклама в друкованих ЗМІ,260208,Центральний офіс,39550770,Україна,"За розмiщення газета ""Маяк"" зг. рах. № 207 вiд 18/08/20 р. без ПДВ",UA663348510000000026007113682,current,1800.00,"РРГ ""МАЯК""",02475517,юридична особа
"ПАРТІЯ ІГОРЯ КОЛИХАЄВА ""НАМ ТУТ ЖИТИ!""","Одеська обл., м. Одеса",57,2020-08-21,36,Виготовлення брендованої продукції,"Виготовлення брендованої продукції (футболки, кепки, парасольки)",260336,Центральний офіс,39550770,Україна,Манішки з символiкоюпартії зг. рах. №26 вiд 20/08/20 р. без ПДВ,UA663348510000000026007113682,current,40500.00,Орешин Андрій Юрійович,,фізична особа
"ПАРТІЯ ІГОРЯ КОЛИХАЄВА ""НАМ ТУТ ЖИТИ!""","Херсонська обл., м. Херсон, вул. ПЕТРЕНКА, буд. 45",58,2020-08-21,35,"Виготовлення друкованих матеріалів (плакатів, листівок, буклетів та інших агітаційних матеріалів)",Друкована агітація,260252,Центральний офіс,39550770,Україна,"За брошури зг. рах. № 6275 вiд 21/08/20 р. ПДВ 1 146,54 грн",UA663348510000000026007113682,current,6879.24,"ПП ""Типографія ""Стар""",38936910,юридична особа
"ПАРТІЯ ІГОРЯ КОЛИХАЄВА ""НАМ ТУТ ЖИТИ!""","Херсонська обл., Верхньорогачицький р-н, смт Верхній Рогачик, вул. ЮВІЛЕЙНА, буд. 61",49,2020-08-21,38,Публікування матеріалів у друкованих ЗМІ,Реклама в друкованих ЗМІ,260213,Центральний офіс,39550770,Україна,За розмiщення в газетi зг. рах. № 54 вiд 20/08/20 р. без ПДВ,UA663348510000000026007113682,current,1306.00,"ТОВ ""РГ ""Рідний край""",02475552,юридична особа
"ПАРТІЯ ІГОРЯ КОЛИХАЄВА ""НАМ ТУТ ЖИТИ!""","Херсонська обл., Чаплинський р-н, смт Чаплинка, вул. ГРУШЕВСЬКОГО, буд. 16, А",49,2020-08-21,37,Публікування матеріалів у друкованих ЗМІ,Реклама в друкованих ЗМІ,260203,Центральний офіс,39550770,Україна,За публiкацiю зг. рах. № 146 вiд 21/08/20 р. без ПДВ,UA663348510000000026007113682,current,792.00,"РГ ""Голос Таврії""",02475411,юридична особа
"ПАРТІЯ ІГОРЯ КОЛИХАЄВА ""НАМ ТУТ ЖИТИ!""","Херсонська обл., м. Херсон, вул. ГАГАРІНА, буд. 21",52,2020-08-19,33,Інша реклама (без класифікації),Реклама (без класифікації),260245,Центральний офіс,39550770,Україна,Послуги по виготволенню та розмiщенню рекламi зг. рах. № 12 вiд 03/08/20 без ПДВ,UA663348510000000026007113682,current,5500.00,ПП ʼГордієнкоʼ,37465118,юридична особа
"ПАРТІЯ ІГОРЯ КОЛИХАЄВА ""НАМ ТУТ ЖИТИ!""","Херсонська обл., м. Херсон, КОШОВИЙ УЗВІЗ, буд. 6",49,2020-08-19,31,Публікування матеріалів у друкованих ЗМІ,Реклама в друкованих ЗМІ,260227,Центральний офіс,39550770,Україна,"За газету зг. рах. № 258737 вiд 10/08/20 р. ПДВ 9 333,33 грн",UA663348510000000026007113682,current,56000.00,ТОВ ʼПолімедʼ,30667919,юридична особа
"ПАРТІЯ ІГОРЯ КОЛИХАЄВА ""НАМ ТУТ ЖИТИ!""","Херсонська обл., м. Херсон, КОШОВИЙ УЗВІЗ, буд. 5",49,2020-08-19,32,Публікування матеріалів у друкованих ЗМІ,Реклама в друкованих ЗМІ,260226,Центральний офіс,39550770,Україна,"За газету зг. рах. № 258746 вiд 12/08/20 р. ПДВ 21 666,80 грн",UA663348510000000026007113682,current,130000.80,ТОВ ʼПолімедʼ,30667919,юридична особа
"ПАРТІЯ ІГОРЯ КОЛИХАЄВА ""НАМ ТУТ ЖИТИ!""","Херсонська обл., Олешківський р-н, м. Олешки, вул. ПАРОХОДНА, буд. 32/А",49,2020-08-19,34,Публікування матеріалів у друкованих ЗМІ,Реклама в друкованих ЗМІ,260201,Центральний офіс,39550770,Україна,Привiтання зг. рах. № 69 вiд 19/08/20 р. без ПДВ,UA663348510000000026007113682,current,1230.00,Редакція газети ʼВісник Олешшяʼ,02475405,юридична особа
"ПАРТІЯ ІГОРЯ КОЛИХАЄВА ""НАМ ТУТ ЖИТИ!""","Херсонська обл., м. Херсон, вул. ДИМИТРОВА, буд. 19, кв. 67",79,2020-08-18,30,"Оренда будинків і приміщень та експлуатаційні витрати (прибирання, страхування орендованих будинків, охорона, сигналізація, ремонт, вивіз сміття, тощо)",Оренда нерухомості,260257,Центральний офіс,39550770,Україна,Оренда нежитлового примiщення зг. дог. № 02-07-2020 р вiд 02/07/20 без ПДВ,UA663348510000000026007113682,current,25000.00,"ТОВ ""НАДРА-ЮГ""",40808337,юридична особа
"ПАРТІЯ ІГОРЯ КОЛИХАЄВА ""НАМ ТУТ ЖИТИ!""","м. Київ, вул. КАНАЛЬНА, буд. 2, корпус 11",56,2020-08-18,29,Виготовлення (оренда) агітаційних наметів,Виготовлення (оренда) агітаційних наметів,260250,Центральний офіс,39550770,Україна,"За каркас та тент намету зг. рах. № 02/171 вiд 17/08/20 р. ПДВ 6 626,67 грн",UA663348510000000026007113682,current,39760.00,"ТОВ ""Промодрук""",38611355,юридична особа
"ПАРТІЯ ІГОРЯ КОЛИХАЄВА ""НАМ ТУТ ЖИТИ!""","м. Київ, вул. КАНАЛЬНА, буд. 2, корпус 10",56,2020-08-18,28,Виготовлення (оренда) агітаційних наметів,Виготовлення (оренда) агітаційних наметів,260249,Центральний офіс,39550770,Україна,"За каркас та тент намету зг. рах. № 02/171 вiд 17/08/20 р. ПДВ 16 566,67 грн",UA663348510000000026007113682,current,99400.00,"ТОВ ""Промодрук""",38611355,юридична особа
"ПАРТІЯ ІГОРЯ КОЛИХАЄВА ""НАМ ТУТ ЖИТИ!""","Херсонська обл., зареєстровано",52,2020-08-13,27,Інша реклама (без класифікації),Реклама (без класифікації),260335,Центральний офіс,39550770,Україна,Розмiщення рекл. зображення зг. рах. № 049 вiд 01/08/20 р. без ПДВ,UA663348510000000026007113682,current,22048.00,Будніков Володимир Миколайович,,фізична особа
"ПАРТІЯ ІГОРЯ КОЛИХАЄВА ""НАМ ТУТ ЖИТИ!""","Херсонська обл., м. Херсон, вул. 40 РОКІВ ЖОВТНЯ, буд. 110, кв. 15",54,2020-08-11,26,Виготовлення відеозаписів,Реклама (без класифікації),260259,Центральний офіс,39550770,Україна,Зйомка та монтаж iмiджевого промо ролика зг. рах .№ 134-в вiд 29/07/20 р. без ПДВ,UA663348510000000026007113682,current,15000.00,"ТОВ ""ХЕРСОН ПЛЮС ПРОДАКШН""",41460314,юридична особа
"ПАРТІЯ ІГОРЯ КОЛИХАЄВА ""НАМ ТУТ ЖИТИ!""","Херсонська обл., м. Херсон",72,2020-08-07,25,"Придбання, ремонт офісної техніки та програмного забезпечення (Бухгалтерські програми, Ліга.закон, домени)",Придбання офісної техніки та програмного забезпечення,260334,Центральний офіс,39550770,Україна,"За постачання пакетiв оновлення МЕДОК, iнф-консульт посл по рах №ПП 521 вiд 23.07.2020, без ПДВ",UA663348510000000026007113682,current,295.00,Дідух Тарас Ярославович,,фізична особа
"ПАРТІЯ ІГОРЯ КОЛИХАЄВА ""НАМ ТУТ ЖИТИ!""","Херсонська обл., м. Херсон, вул. ІЛ. КУЛІКА, буд. 29, кв. 271",52,2020-08-07,24,Інша реклама (без класифікації),Реклама (без класифікації),260333,Центральний офіс,39550770,Україна,Виготовлення зображеня зг. рах. № 116 вiд 06/08/20 р. без ПДВ,UA663348510000000026007113682,current,10453.90,Попов Олег Михайлович,,фізична особа
"ПАРТІЯ ІГОРЯ КОЛИХАЄВА ""НАМ ТУТ ЖИТИ!""","Херсонська обл., м. Нова Каховка",52,2020-08-03,23,Інша реклама (без класифікації),Реклама (без класифікації),260332,Центральний офіс,39550770,Україна,За рекламнi послуги зг. рах. № ЗП-19840 вiд 14/07/20 без ПДВ,UA663348510000000026007113682,current,63000.00,Хут Олеся Анатоліївна,,фізична особа
"ПАРТІЯ ІГОРЯ КОЛИХАЄВА ""НАМ ТУТ ЖИТИ!""","Херсонська обл., м. Херсон",52,2020-07-31,21,Інша реклама (без класифікації),Реклама (без класифікації),260331,Центральний офіс,39550770,Україна,"Розмiщення реклами зг. рах. № 109 вiд 28/07/20 р., без ПДВ",UA663348510000000026007113682,current,58450.00,Попов Олег Михайлович,,фізична особа
"ПАРТІЯ ІГОРЯ КОЛИХАЄВА ""НАМ ТУТ ЖИТИ!""","Херсонська обл., м. Херсон",52,2020-07-31,22,Інша реклама (без класифікації),Реклама (без класифікації),260330,Центральний офіс,39550770,Україна,"Виготовлення зображеня зг. рах. № 110 вiд 29/07/20 р., без ПДВ",UA663348510000000026007113682,current,28088.55,Попов Олег Михайлович,,фізична особа
"ПАРТІЯ ІГОРЯ КОЛИХАЄВА ""НАМ ТУТ ЖИТИ!""","м. Київ, вул. АННИ АХМАТОВОЇ, буд. 13Г, кв. 51",53,2020-07-31,20,Витрати на розміщення зовнішньої реклами,Зовнішня реклама,260243,Центральний офіс,39550770,Україна,"Розмiщення зовнiш. реклами зг. рах. № 215 вiд 30/07/20 р. ПДВ 9 900,00 грн",UA663348510000000026007113682,current,59400.00,"ТОВ ""РА ""Антаріс""",37153589,юридична особа
"ПАРТІЯ ІГОРЯ КОЛИХАЄВА ""НАМ ТУТ ЖИТИ!""","м. Київ, вул. АНДРІЇВСЬКА, буд. 4",70,2020-07-31,41787538.550168.359,Банківські послуги,Інші витрати,260199,Центральний офіс,39550770,Україна,"Договірне списання комісії за тарифним пакетом за період з 01/07/2020 по 31/07/2020, договір №286652233 від 24/03/2020 зг-но Тарифів ПУМБ",UA663348510000000026007113682,current,150.00,"ПАТ ""ПУМБ""",14282829,юридична особа
"ПАРТІЯ ІГОРЯ КОЛИХАЄВА ""НАМ ТУТ ЖИТИ!""",м. Київ,82,2020-07-29,19,"Гонорари, в тому числі за надані консультаційні послуги","Гонорари, в тому числі за надані консультаційні послуги",260329,Центральний офіс,39550770,Україна,За юридичнi послуги по оформленю символiки зг. рах. № 813 вiд 16/07/20 р. без ПДВ,UA663348510000000026007113682,current,1500.00,Добровіцький Сергій Володимирович,,фізична особа
"ПАРТІЯ ІГОРЯ КОЛИХАЄВА ""НАМ ТУТ ЖИТИ!""","Херсонська обл., м. Херсон",52,2020-07-29,18,Інша реклама (без класифікації),Реклама (без класифікації),260328,Центральний офіс,39550770,Україна,Розмiщення реклами зг. рах. № 109 вiд 28/07/20 р. без ПДВ,UA663348510000000026007113682,current,350000.00,Попов Олег Михайлович,,фізична особа
"ПАРТІЯ ІГОРЯ КОЛИХАЄВА ""НАМ ТУТ ЖИТИ!""","Херсонська обл., м. Херсон",72,2020-07-17,17,"Придбання, ремонт офісної техніки та програмного забезпечення (Бухгалтерські програми, Ліга.закон, домени)",Придбання офісної техніки та програмного забезпечення,260327,Центральний офіс,39550770,Україна,"За постачання пакетiв оновлення МЕДОК, iнф-консульт посл по рах №ПП 500,501,502,503,504,505 вiд 15.07.2020, без ПДВ",UA663348510000000026007113682,current,3600.00,Дідух Тарас Ярославович,,фізична особа
"ПАРТІЯ ІГОРЯ КОЛИХАЄВА ""НАМ ТУТ ЖИТИ!""","м. Київ, вул. КИРИЛІВСЬКА, буд. 102",72,2020-07-17,12,"Придбання, ремонт офісної техніки та програмного забезпечення (Бухгалтерські програми, Ліга.закон, домени)",Придбання офісної техніки та програмного забезпечення,260242,Центральний офіс,39550770,Україна,"За обробку данних та видачу сертифiкатiв ЕЦП та постачання КП ""ВАРТА"" зг. рах. №ЦХТ43576407 вiд 15.07.2020 ПДВ 2,00 грн",UA663348510000000026007113682,current,662.00,"ТОВ ""Центр сертифікації ключів ""Україна""",36865753,юридична особа
"ПАРТІЯ ІГОРЯ КОЛИХАЄВА ""НАМ ТУТ ЖИТИ!""","м. Київ, вул. КИРИЛІВСЬКА, буд. 102",72,2020-07-17,13,"Придбання, ремонт офісної техніки та програмного забезпечення (Бухгалтерські програми, Ліга.закон, домени)",Придбання офісної техніки та програмного забезпечення,260241,Центральний офіс,39550770,Україна,"За обробку данних та видачу сертифiкатiв ЕЦП та постачання КП ""ВАРТА"" зг. рах. №ЦХТ40242427 вiд 15.07.2020 ПДВ 2,00 грн",UA663348510000000026007113682,current,662.00,"ТОВ ""Центр сертифікації ключів ""Україна""",36865753,юридична особа
"ПАРТІЯ ІГОРЯ КОЛИХАЄВА ""НАМ ТУТ ЖИТИ!""","м. Київ, вул. КИРИЛІВСЬКА, буд. 102",72,2020-07-17,14,"Придбання, ремонт офісної техніки та програмного забезпечення (Бухгалтерські програми, Ліга.закон, домени)",Придбання офісної техніки та програмного забезпечення,260240,Центральний офіс,39550770,Україна,"За обробку данних та видачу сертифiкатiв ЕЦП та постачання КП ""ВАРТА"" зг. рах. №ЦХТ39662725 вiд 15.07.2020 ПДВ 2,00 грн",UA663348510000000026007113682,current,662.00,"ТОВ ""Центр сертифікації ключів ""Україна""",36865753,юридична особа
"ПАРТІЯ ІГОРЯ КОЛИХАЄВА ""НАМ ТУТ ЖИТИ!""","м. Київ, вул. КИРИЛІВСЬКА, буд. 102",72,2020-07-17,15,"Придбання, ремонт офісної техніки та програмного забезпечення (Бухгалтерські програми, Ліга.закон, домени)",Придбання офісної техніки та програмного забезпечення,260239,Центральний офіс,39550770,Україна,"За обробку данних та видачу сертифiкатiв ЕЦП та постачання КП ""ВАРТА"" зг. рах. №ЦХТ39647340 вiд 15.07.2020 ПДВ 2,00 грн",UA663348510000000026007113682,current,662.00,"ТОВ ""Центр сертифікації ключів ""Україна""",36865753,юридична особа
"ПАРТІЯ ІГОРЯ КОЛИХАЄВА ""НАМ ТУТ ЖИТИ!""","м. Київ, вул. КИРИЛІВСЬКА, буд. 102",72,2020-07-17,16,"Придбання, ремонт офісної техніки та програмного забезпечення (Бухгалтерські програми, Ліга.закон, домени)",Придбання офісної техніки та програмного забезпечення,260238,Центральний офіс,39550770,Україна,"За обробку данних та видачу сертифiкатiв ЕЦП та постачання КП ""ВАРТА"" зг. рах. №ЦХТ39940026 вiд 15.07.2020 ПДВ 2,00 грн",UA663348510000000026007113682,current,662.00,"ТОВ ""Центр сертифікації ключів ""Україна""",36865753,юридична особа
"ПАРТІЯ ІГОРЯ КОЛИХАЄВА ""НАМ ТУТ ЖИТИ!""","м. Київ, вул. КИРИЛІВСЬКА, буд. 102",72,2020-07-17,11,"Придбання, ремонт офісної техніки та програмного забезпечення (Бухгалтерські програми, Ліга.закон, домени)",Придбання офісної техніки та програмного забезпечення,260237,Центральний офіс,39550770,Україна,"За обробку данних та видачу сертифiкатiв ЕЦП та постачання КП ""ВАРТА"" зг. рах. №ЦХТ39550770 вiд 15.07.2020 ПДВ 2,00 грн",UA663348510000000026007113682,current,662.00,"ТОВ ""Центр сертифікації ключів ""Україна""",36865753,юридична особа
"ПАРТІЯ ІГОРЯ КОЛИХАЄВА ""НАМ ТУТ ЖИТИ!""","Херсонська обл., м. Херсон, вул. ДИМИТРОВА, буд. 19, кв. 67",79,2020-07-10,10,"Оренда будинків і приміщень та експлуатаційні витрати (прибирання, страхування орендованих будинків, охорона, сигналізація, ремонт, вивіз сміття, тощо)",Оренда нерухомості,260256,Центральний офіс,39550770,Україна,Оренда нежитлового примiщення зг. дог. № 02-07-2020 р вiд 02/07/20 без ПДВ,UA663348510000000026007113682,current,25000.00,"ТОВ ""НАДРА-ЮГ""",40808337,юридична особа
"ПАРТІЯ ІГОРЯ КОЛИХАЄВА ""НАМ ТУТ ЖИТИ!""","м. Київ, вул. МАШИНОБУДІВНА, буд. 35А",72,2020-07-02,9,"Придбання, ремонт офісної техніки та програмного забезпечення (Бухгалтерські програми, Ліга.закон, домени)",Придбання офісної техніки та програмного забезпечення,260246,Центральний офіс,39550770,Україна,"оплата за хостинг згадно рахунка № 1-4908268 вiд 02.07.2020 ПДВ 72,00 грн",UA663348510000000026007113682,current,432.00,"ТОВ ""Хостінг Україна""",37593550,юридична особа
"ПАРТІЯ ІГОРЯ КОЛИХАЄВА ""НАМ ТУТ ЖИТИ!""","м. Київ, вул. АНДРІЇВСЬКА, буд. 4",70,2020-06-30,,Банківські послуги,Інші витрати,260197,Центральний офіс,39550770,Україна,Договірне списання комісії за надання довідки інформаційного характеру згідно тарифів ПУМБ за дог № 286651447 від 24/03/2020 .,UA663348510000000026007113682,current,150.00,"ПАТ ""ПУМБ""",14282829,юридична особа
"ПАРТІЯ ІГОРЯ КОЛИХАЄВА ""НАМ ТУТ ЖИТИ!""","м. Київ, вул. АНДРІЇВСЬКА, буд. 4",70,2020-05-31,,Банківські послуги,Інші витрати,260196,Центральний офіс,39550770,Україна,"Договірне списання комісії за тарифним пакетом за період з 01/05/2020 по 31/05/2020, договір №286652233 від 24/03/2020 зг-но Тарифів ПУМБ",UA663348510000000026007113682,current,150.00,"ПАТ ""ПУМБ""",14282829,юридична особа
"ПАРТІЯ ІГОРЯ КОЛИХАЄВА ""НАМ ТУТ ЖИТИ!""","Херсонська обл., м. Херсон, вул. КАНАТНА, буд. 21 / ул. ГЕТЬМАНА САГАЙДАЧНОГО, 41",79,2020-05-15,7,"Оренда будинків і приміщень та експлуатаційні витрати (прибирання, страхування орендованих будинків, охорона, сигналізація, ремонт, вивіз сміття, тощо)",Оренда нерухомості,260251,Центральний офіс,39550770,Україна,Суборенда примiщення зг. дог. № 20/01/02 вiд 02/01/20р.,UA663348510000000026007113682,current,400.00,"ТОВ ""Українська продовольча корпорація""",38822685,юридична особа
"ПАРТІЯ ІГОРЯ КОЛИХАЄВА ""НАМ ТУТ ЖИТИ!""","Херсонська обл., м. Херсон, пров. ГОТЕЛЬНИЙ, буд. 2, кв. 19",82,2020-05-15,8,"Гонорари, в тому числі за надані консультаційні послуги","Гонорари, в тому числі за надані консультаційні послуги",260244,Центральний офіс,39550770,Україна,За юр.послуги зг. дог.№3-юр від 04/05/20 г.,UA663348510000000026007113682,current,10000.00,"ТОВ ""КАПИТАЛ ЮРИСТ""",37239037,юридична особа
"ПАРТІЯ ІГОРЯ КОЛИХАЄВА ""НАМ ТУТ ЖИТИ!""","м. Київ, вул. АНДРІЇВСЬКА, буд. 4",70,2020-04-30,,Банківські послуги,Інші витрати,260195,Центральний офіс,39550770,Україна,"Договірне списання комісії за тарифним пакетом за період з 01/04/2020 по 30/04/2020, дог. №286652233 від 24/03/2020 зг.Тарифів ПУМБ",UA663348510000000026007113682,current,150.00,"ПАТ ""ПУМБ""",14282829,юридична особа
"ПАРТІЯ ІГОРЯ КОЛИХАЄВА ""НАМ ТУТ ЖИТИ!""","м. Київ, вул. АНДРІЇВСЬКА, буд. 4",70,2020-04-28,,Банківські послуги,Інші витрати,260194,Центральний офіс,39550770,Україна,Договірне списання комісії за надання довідки інформаційного характеру згідно тарифів ПУМБ за дог. № 286651447 від 24/03/2020 .,UA663348510000000026007113682,current,150.00,"ПАТ ""ПУМБ""",14282829,юридична особа
"ПАРТІЯ ІГОРЯ КОЛИХАЄВА ""НАМ ТУТ ЖИТИ!""","Закарпатська обл., м. Ужгород",82,2020-04-16,6,"Гонорари, в тому числі за надані консультаційні послуги","Гонорари, в тому числі за надані консультаційні послуги",260326,Центральний офіс,39550770,Україна,послуги по супровожденню сайту зг. рах. № 05 вiд 15/04/20 р.,UA663348510000000026007113682,current,2175.00,Ларіонов Олександр Лазарович,,фізична особа
"ПАРТІЯ ІГОРЯ КОЛИХАЄВА ""НАМ ТУТ ЖИТИ!""",м. Херсон,52,2020-04-03,5,Інша реклама (без класифікації),Реклама (без класифікації),260325,Центральний офіс,39550770,Україна,Розміщення реклами зг. рах. № 9 від 24/02/20 р.,UA663348510000000026007113682,current,15000.00,Мельниченко Олександр Миколайович,,фізична особа
"ПАРТІЯ ІГОРЯ КОЛИХАЄВА ""НАМ ТУТ ЖИТИ!""",м. Київ,82,2020-03-27,4,"Гонорари, в тому числі за надані консультаційні послуги","Гонорари, в тому числі за надані консультаційні послуги",260324,Центральний офіс,39550770,Україна,За юридичні послуги по оформленні символіки партії зг.рах.№715 від 11.03.20р.,UA663348510000000026007113682,current,2800.00,Добровіцький Сергій Володимирович,,фізична особа
"ПАРТІЯ ІГОРЯ КОЛИХАЄВА ""НАМ ТУТ ЖИТИ!""",м. Київ,82,2020-03-27,4,"Гонорари, в тому числі за надані консультаційні послуги","Гонорари, в тому числі за надані консультаційні послуги",260323,Центральний офіс,39550770,Україна,За юридичні послуги по оформленні символіки партії зг.рах.№715 від 11.03.20р.,UA663348510000000026007113682,current,2800.00,Добровіцький Сергій Володимирович,,фізична особа
"ПАРТІЯ ІГОРЯ КОЛИХАЄВА ""НАМ ТУТ ЖИТИ!""",м. Херсон,63,2020-03-27,3,Податок на доходи,Податкові платежі,260248,Центральний офіс,39550770,Україна,*;101;39550770; Податок на прибуток за 2019р.,UA663348510000000026007113682,current,792.00,УДКСУ у м. Херсон,37959779,юридична особа
"ПАРТІЯ ІГОРЯ КОЛИХАЄВА ""НАМ ТУТ ЖИТИ!""",м. Херсон,63,2020-03-27,3,Податок на доходи,Податкові платежі,260247,Центральний офіс,39550770,Україна,*;101;39550770; Податок на прибуток за 2019р.,UA663348510000000026007113682,current,792.00,УДКСУ у м. Херсон,37959779,юридична особа
